Body Name,ONS SNAC ID,Pay Date,Transaction No,Amount �,Supplier Name,Company Registration No,Department,Account Name,CIPFA Service Reporting
Swale Borough Council,29UM,03/08/2016,1143492,1362.72,BLENWOOD LTD,4383277                  ,LEISURE & OPEN SPACES,Grounds Contract Variations,Cultural and Related Services
Swale Borough Council,29UM,03/08/2016,1143630,707.66,BT REDCARE,1800000                  ,COMMUNITY SAFETY,CCTV Line Rental,Environmental and Regulatory Services
Swale Borough Council,29UM,03/08/2016,1143596,573.48,CCS MEDIA LTD,                         ,ICT,Payments in Year,Ledger/Suspense Codes
Swale Borough Council,29UM,03/08/2016,1143716,180.00,CIEH,                         ,MKIP ENVIRONMENTAL SERVICES,"Books, Journals & e - resources",Environmental and Regulatory Services
Swale Borough Council,29UM,03/08/2016,1143716,849.00,CIEH,                         ,MKIP ENVIRONMENTAL SERVICES,"Books, Journals & e - resources",Environmental and Regulatory Services
Swale Borough Council,29UM,03/08/2016,1143488,3955.28,COMENSURA LTD,04085767                 ,HUMAN RESOURCES,Agency/Contract Staff,Internal Trading Cost Centres
Swale Borough Council,29UM,03/08/2016,1143737,8775.00,DOLPHIN STAIRLIFTS (KENT),04181846                 ,HOUSING SERVICES,Housing Renovation Grants,Not used in this Structure
Swale Borough Council,29UM,03/08/2016,1142560,40000.00,FAVERSHAM POOL MNGMT.COMMITTEE,                         ,ECONOMY & COMMUNITIES,Grants & Subscriptions,Cultural and Related Services
Swale Borough Council,29UM,03/08/2016,1143613,1000.00,FAVERSHAM YOUTH CHOIR,                         ,TOURISM & SPORTS DEVELOPMENT,Grants & Subscriptions,Cultural and Related Services
Swale Borough Council,29UM,03/08/2016,1143576,353.50,FIRE & SECURITY CONSULTANCY LTD,5946022                  ,PROPERTY SERVICES,Service Contracts,Corporate & Democratic Core
Swale Borough Council,29UM,03/08/2016,1143579,934.00,FIRE & SECURITY CONSULTANCY LTD,5946022                  ,PROPERTY SERVICES,Service Contracts,Corporate & Democratic Core
Swale Borough Council,29UM,03/08/2016,1143580,503.50,FIRE & SECURITY CONSULTANCY LTD,5946022                  ,PROPERTY SERVICES,Non-Planned Building Maintenance,Corporate & Democratic Core
Swale Borough Council,29UM,03/08/2016,1143731,3000.00,GREENS GROUNDWORK,                         ,HOUSING SERVICES,Housing Renovation Grants,Not used in this Structure
Swale Borough Council,29UM,03/08/2016,1143324,746.85,HAYS ACCOUNTANCY PERSONNEL,975677                   ,EMERGENCY PLANNING,Other Local Authorities,Central Services to the Public
Swale Borough Council,29UM,03/08/2016,1143402,746.85,HAYS ACCOUNTANCY PERSONNEL,975677                   ,EMERGENCY PLANNING,Other Local Authorities,Central Services to the Public
Swale Borough Council,29UM,03/08/2016,1143583,726.66,HAYS ACCOUNTANCY PERSONNEL,975677                   ,EMERGENCY PLANNING,Other Local Authorities,Central Services to the Public
Swale Borough Council,29UM,03/08/2016,1143629,969.00,HEDGEGATE PROPERTIES LTD,                         ,HOUSING SERVICES,RDS - Landlord claim on Bond Scheme,Housing
Swale Borough Council,29UM,03/08/2016,1143773,3255.00,HMCTS,                         ,REVENUE SERVICES,Court Costs,Central Services to the Public
Swale Borough Council,29UM,03/08/2016,1143635,250.00,HOLM PLACE ANGLERS,                         ,COMMUNITY SAFETY,Grants & Subscriptions,Central Services to the Public
Swale Borough Council,29UM,03/08/2016,1143727,4050.00,HUBBARD & HOUGHTON CONSTRUCTION LTD,                         ,HOUSING SERVICES,Housing Renovation Grants,Not used in this Structure
Swale Borough Council,29UM,03/08/2016,1143728,5400.00,HUBBARD & HOUGHTON CONSTRUCTION LTD,                         ,HOUSING SERVICES,Housing Renovation Grants,Not used in this Structure
Swale Borough Council,29UM,03/08/2016,1143729,5400.00,HUBBARD & HOUGHTON CONSTRUCTION LTD,                         ,HOUSING SERVICES,Housing Renovation Grants,Not used in this Structure
Swale Borough Council,29UM,03/08/2016,1143315,715.00,HYDRO DESCALING LTD,1304128                  ,LEISURE & OPEN SPACES,Consultancy/Specialist Advice,Cultural and Related Services
Swale Borough Council,29UM,03/08/2016,1143593,840.00,ISLAND LEISURE PRODUCTS,                         ,LEISURE & OPEN SPACES,Maintenance - Grounds,Cultural and Related Services
Swale Borough Council,29UM,03/08/2016,1143738,580.57,J & D SYSTEMS,                         ,HOUSING SERVICES,Housing Renovation Grants,Not used in this Structure
Swale Borough Council,29UM,03/08/2016,1143739,2228.82,REDACTED PERSONAL INFORMATION,                         ,HOUSING SERVICES,Housing Renovation Grants,Not used in this Structure
Swale Borough Council,29UM,03/08/2016,1143349,12500.00,KENT COMMUNITY HEALTH NHS TRUST,                         ,TOURISM & SPORTS DEVELOPMENT,Fees And Services,Cultural and Related Services
Swale Borough Council,29UM,03/08/2016,1143582,1169.12,KENT COUNTY COUNCIL,                         ,SERVICE DELIVERY,Fees And Services,Highway and Transport Services
Swale Borough Council,29UM,03/08/2016,1143621,3500.00,KENT COUNTY COUNCIL,                         ,CHIEF EXECUTIVE,Kent & Medway Chief Execs - Forum Support,Internal Trading Cost Centres
Swale Borough Council,29UM,03/08/2016,1138002,590.00,KENT MESSENGER LTD,505554                   ,COMMUNICATIONS,Advertising & Promotion,Internal Trading Cost Centres
Swale Borough Council,29UM,03/08/2016,1143615,295.44,KERRY SCS LIMITED,6059349                  ,PROPERTY SERVICES,Service Contracts,Corporate & Democratic Core
Swale Borough Council,29UM,03/08/2016,1143240,300.00,LEMAR LIMITED,04350292                 ,LEISURE & OPEN SPACES,Maintenance - Grounds,Cultural and Related Services
Swale Borough Council,29UM,03/08/2016,1143240,295.00,LEMAR LIMITED,04350292                 ,LEISURE & OPEN SPACES,Maintenance - Grounds,Cultural and Related Services
Swale Borough Council,29UM,03/08/2016,1143597,300.00,LEMAR LIMITED,04350292                 ,SERVICE DELIVERY,Private Contractors - CIS,Environmental and Regulatory Services
Swale Borough Council,29UM,03/08/2016,1143597,150.00,LEMAR LIMITED,04350292                 ,SERVICE DELIVERY,Private Contractors - CIS,Environmental and Regulatory Services
Swale Borough Council,29UM,03/08/2016,1143598,200.00,LEMAR LIMITED,04350292                 ,SERVICE DELIVERY,Private Contractors - CIS,Environmental and Regulatory Services
Swale Borough Council,29UM,03/08/2016,1143598,125.00,LEMAR LIMITED,04350292                 ,SERVICE DELIVERY,Private Contractors - CIS,Environmental and Regulatory Services
Swale Borough Council,29UM,03/08/2016,1143599,250.00,LEMAR LIMITED,04350292                 ,SERVICE DELIVERY,Private Contractors - CIS,Highway and Transport Services
Swale Borough Council,29UM,03/08/2016,1143599,125.00,LEMAR LIMITED,04350292                 ,SERVICE DELIVERY,Private Contractors - CIS,Highway and Transport Services
Swale Borough Council,29UM,03/08/2016,1143600,200.00,LEMAR LIMITED,04350292                 ,SERVICE DELIVERY,Private Contractors - CIS,Highway and Transport Services
Swale Borough Council,29UM,03/08/2016,1143600,50.00,LEMAR LIMITED,04350292                 ,SERVICE DELIVERY,Private Contractors - CIS,Highway and Transport Services
Swale Borough Council,29UM,03/08/2016,1143672,600.00,LEMAR LIMITED,04350292                 ,LEISURE & OPEN SPACES,Maintenance - Grounds,Cultural and Related Services
Swale Borough Council,29UM,03/08/2016,1143672,786.00,LEMAR LIMITED,04350292                 ,LEISURE & OPEN SPACES,Maintenance - Grounds,Cultural and Related Services
Swale Borough Council,29UM,03/08/2016,1143673,600.00,LEMAR LIMITED,04350292                 ,LEISURE & OPEN SPACES,Maintenance - Grounds,Cultural and Related Services
Swale Borough Council,29UM,03/08/2016,1143673,526.00,LEMAR LIMITED,04350292                 ,LEISURE & OPEN SPACES,Maintenance - Grounds,Cultural and Related Services
Swale Borough Council,29UM,03/08/2016,1143674,500.00,LEMAR LIMITED,04350292                 ,SERVICE DELIVERY,Private Contractors - CIS,Highway and Transport Services
Swale Borough Council,29UM,03/08/2016,1143674,400.00,LEMAR LIMITED,04350292                 ,SERVICE DELIVERY,Private Contractors - CIS,Highway and Transport Services
Swale Borough Council,29UM,03/08/2016,1143676,300.00,LEMAR LIMITED,04350292                 ,SERVICE DELIVERY,Private Contractors - CIS,Highway and Transport Services
Swale Borough Council,29UM,03/08/2016,1143676,375.00,LEMAR LIMITED,04350292                 ,SERVICE DELIVERY,Private Contractors - CIS,Highway and Transport Services
Swale Borough Council,29UM,03/08/2016,1143677,400.00,LEMAR LIMITED,04350292                 ,SERVICE DELIVERY,Private Contractors - CIS,Highway and Transport Services
Swale Borough Council,29UM,03/08/2016,1143677,337.50,LEMAR LIMITED,04350292                 ,SERVICE DELIVERY,Private Contractors - CIS,Highway and Transport Services
Swale Borough Council,29UM,03/08/2016,1143678,300.00,LEMAR LIMITED,04350292                 ,SERVICE DELIVERY,Private Contractors - CIS,Highway and Transport Services
Swale Borough Council,29UM,03/08/2016,1143678,447.50,LEMAR LIMITED,04350292                 ,SERVICE DELIVERY,Private Contractors - CIS,Highway and Transport Services
Swale Borough Council,29UM,03/08/2016,1143679,500.00,LEMAR LIMITED,04350292                 ,SERVICE DELIVERY,Private Contractors - CIS,Highway and Transport Services
Swale Borough Council,29UM,03/08/2016,1143679,445.00,LEMAR LIMITED,04350292                 ,SERVICE DELIVERY,Private Contractors - CIS,Highway and Transport Services
Swale Borough Council,29UM,03/08/2016,1143680,450.00,LEMAR LIMITED,04350292                 ,SERVICE DELIVERY,Private Contractors - CIS,Highway and Transport Services
Swale Borough Council,29UM,03/08/2016,1143680,425.00,LEMAR LIMITED,04350292                 ,SERVICE DELIVERY,Private Contractors - CIS,Highway and Transport Services
Swale Borough Council,29UM,03/08/2016,1143681,450.00,LEMAR LIMITED,04350292                 ,SERVICE DELIVERY,Private Contractors - CIS,Highway and Transport Services
Swale Borough Council,29UM,03/08/2016,1143681,485.00,LEMAR LIMITED,04350292                 ,SERVICE DELIVERY,Private Contractors - CIS,Highway and Transport Services
Swale Borough Council,29UM,03/08/2016,1143682,150.00,LEMAR LIMITED,04350292                 ,SERVICE DELIVERY,Maintenance - Grounds,Cultural and Related Services
Swale Borough Council,29UM,03/08/2016,1143682,125.00,LEMAR LIMITED,04350292                 ,SERVICE DELIVERY,Maintenance - Grounds,Cultural and Related Services
Swale Borough Council,29UM,03/08/2016,1143691,1945.00,LIBERTY PRINTERS LTD,2920033                  ,CAR PARKS,External Permit Printing,Highway and Transport Services
Swale Borough Council,29UM,03/08/2016,1143207,1000.00,LOCATA (HOUSING SERVICES) LTD,04419315                 ,HOUSING SERVICES,Fees And Services,Housing
Swale Borough Council,29UM,03/08/2016,1142776,2500.00,LONDON BOROUGH OF CAMDEN,                         ,HOUSING SERVICES,Fees And Services,Housing
Swale Borough Council,29UM,03/08/2016,1143222,1250.00,M A WOOD,                         ,DEMOCRATIC & ELECTORAL SERVICES,Fees-Adapting Rooms-Elections,Ledger/Suspense Codes
Swale Borough Council,29UM,03/08/2016,1143667,2954.00,MAYLOW CONSTRUCTION LTD,                         ,LEISURE & OPEN SPACES,Maintenance - Grounds,Cultural and Related Services
Swale Borough Council,29UM,03/08/2016,1143668,577.00,MAYLOW CONSTRUCTION LTD,                         ,LEISURE & OPEN SPACES,Maintenance - Grounds,Cultural and Related Services
Swale Borough Council,29UM,03/08/2016,1142701,1902.40,MEDWAY ACCOMMODATION LIMITED,                         ,HOUSING SERVICES,B & B - Landlords Payments,Housing
Swale Borough Council,29UM,03/08/2016,1142701,396.33,MEDWAY ACCOMMODATION LIMITED,                         ,HOUSING SERVICES,B & B - Landlords Payments,Housing
Swale Borough Council,29UM,03/08/2016,1142864,394.50,MEDWAY ACCOMMODATION LIMITED,                         ,HOUSING SERVICES,B & B - Landlords Payments,Housing
Swale Borough Council,29UM,03/08/2016,1142864,1893.60,MEDWAY ACCOMMODATION LIMITED,                         ,HOUSING SERVICES,B & B - Landlords Payments,Housing
Swale Borough Council,29UM,03/08/2016,1143035,338.83,MEDWAY ACCOMMODATION LIMITED,                         ,HOUSING SERVICES,B & B - Landlords Payments,Housing
Swale Borough Council,29UM,03/08/2016,1143035,1626.40,MEDWAY ACCOMMODATION LIMITED,                         ,HOUSING SERVICES,B & B - Landlords Payments,Housing
Swale Borough Council,29UM,03/08/2016,1143233,2022.40,MEDWAY ACCOMMODATION LIMITED,                         ,HOUSING SERVICES,B & B - Landlords Payments,Housing
Swale Borough Council,29UM,03/08/2016,1143233,421.33,MEDWAY ACCOMMODATION LIMITED,                         ,HOUSING SERVICES,B & B - Landlords Payments,Housing
Swale Borough Council,29UM,03/08/2016,1143409,418.83,MEDWAY ACCOMMODATION LIMITED,                         ,HOUSING SERVICES,B & B - Landlords Payments,Housing
Swale Borough Council,29UM,03/08/2016,1143409,2010.40,MEDWAY ACCOMMODATION LIMITED,                         ,HOUSING SERVICES,B & B - Landlords Payments,Housing
Swale Borough Council,29UM,03/08/2016,1143569,3000.00,METRIC GROUP LTD,2560839                  ,CAR PARKS,Equipment Purchase,Highway and Transport Services
Swale Borough Council,29UM,03/08/2016,1143569,50.00,METRIC GROUP LTD,2560839                  ,CAR PARKS,Maintenance - Grounds,Highway and Transport Services
Swale Borough Council,29UM,03/08/2016,1143604,2756.25,MLM CONSULTING ENGINEERS LTD,3057104                  ,COMMUNITY SAFETY,Capitalised Fees And Charges,Not used in this Structure
Swale Borough Council,29UM,03/08/2016,1143287,300.00,MR J W GATES,                         ,LEISURE & OPEN SPACES,Maintenance - Grounds,Cultural and Related Services
Swale Borough Council,29UM,03/08/2016,1143287,250.00,MR J W GATES,                         ,LEISURE & OPEN SPACES,Maintenance - Grounds,Cultural and Related Services
Swale Borough Council,29UM,03/08/2016,1143287,120.00,MR J W GATES,                         ,LEISURE & OPEN SPACES,Maintenance - Grounds,Cultural and Related Services
Swale Borough Council,29UM,03/08/2016,1143690,150.00,MR J W GATES,                         ,SERVICE DELIVERY,Maintenance - Grounds,Cultural and Related Services
Swale Borough Council,29UM,03/08/2016,1143690,100.00,MR J W GATES,                         ,SERVICE DELIVERY,Maintenance - Grounds,Cultural and Related Services
Swale Borough Council,29UM,03/08/2016,1143690,50.00,MR J W GATES,                         ,SERVICE DELIVERY,Maintenance - Grounds,Cultural and Related Services
Swale Borough Council,29UM,03/08/2016,1143415,970.00,REDACTED PERSONAL INFORMATION,                         ,HOUSING SERVICES,RDS - Landlord claim on Bond Scheme,Housing
Swale Borough Council,29UM,03/08/2016,1143462,405.00,NORMAN BROMLEY PARTNERSHIP LLP,                         ,COMMUNITY SAFETY,Capitalised Fees And Charges,Not used in this Structure
Swale Borough Council,29UM,03/08/2016,1143123,17.00,O2 (UK) LTD,1743099                  ,COMMUNITY SAFETY,Cellphone,Planning and Development Services
Swale Borough Council,29UM,03/08/2016,1143123,7.55,O2 (UK) LTD,1743099                  ,COMMUNITY SAFETY,Cellphone,Planning and Development Services
Swale Borough Council,29UM,03/08/2016,1143123,33.00,O2 (UK) LTD,1743099                  ,COMMUNITY SAFETY,Cellphone,Environmental and Regulatory Services
Swale Borough Council,29UM,03/08/2016,1143123,9.50,O2 (UK) LTD,1743099                  ,POLICY,Cellphone,Corporate & Democratic Core
Swale Borough Council,29UM,03/08/2016,1143123,16.00,O2 (UK) LTD,1743099                  ,PLANNING SERVICES,Cellphone,Planning and Development Services
Swale Borough Council,29UM,03/08/2016,1143123,10.00,O2 (UK) LTD,1743099                  ,PLANNING SERVICES,Cellphone,Planning and Development Services
Swale Borough Council,29UM,03/08/2016,1143123,9.50,O2 (UK) LTD,1743099                  ,EMERGENCY PLANNING,Cellphone,Central Services to the Public
Swale Borough Council,29UM,03/08/2016,1143123,23.00,O2 (UK) LTD,1743099                  ,SERVICE DELIVERY,Cellphone,Cultural and Related Services
Swale Borough Council,29UM,03/08/2016,1143123,37.00,O2 (UK) LTD,1743099                  ,HOUSING SERVICES,Cellphone,Housing
Swale Borough Council,29UM,03/08/2016,1143123,24.80,O2 (UK) LTD,1743099                  ,REVENUE SERVICES,Cellphone,Housing
Swale Borough Council,29UM,03/08/2016,1143123,7.00,O2 (UK) LTD,1743099                  ,HOUSING SERVICES,Cellphone,Housing
Swale Borough Council,29UM,03/08/2016,1143123,7.00,O2 (UK) LTD,1743099                  ,DEMOCRATIC & ELECTORAL SERVICES,Cellphone,Internal Trading Cost Centres
Swale Borough Council,29UM,03/08/2016,1143123,9.50,O2 (UK) LTD,1743099                  ,DIRECTOR OF CORPORATE SERVICES,Cellphone,Internal Trading Cost Centres
Swale Borough Council,29UM,03/08/2016,1143123,58.20,O2 (UK) LTD,1743099                  ,PROPERTY SERVICES,Cellphone,Internal Trading Cost Centres
Swale Borough Council,29UM,03/08/2016,1143123,7.00,O2 (UK) LTD,1743099                  ,ECONOMY & COMMUNITIES,Cellphone,Internal Trading Cost Centres
Swale Borough Council,29UM,03/08/2016,1143123,19.00,O2 (UK) LTD,1743099                  ,TOURISM & SPORTS DEVELOPMENT,Cellphone,Internal Trading Cost Centres
Swale Borough Council,29UM,03/08/2016,1143123,28.00,O2 (UK) LTD,1743099                  ,ECONOMIC DEVELOPMENT,Cellphone,Internal Trading Cost Centres
Swale Borough Council,29UM,03/08/2016,1143123,20.00,O2 (UK) LTD,1743099                  ,SERVICE DELIVERY,Cellphone,Internal Trading Cost Centres
Swale Borough Council,29UM,03/08/2016,1143123,148.00,O2 (UK) LTD,1743099                  ,CONTRACT & PROCUREMENT,Cellphone,Internal Trading Cost Centres
Swale Borough Council,29UM,03/08/2016,1143123,52.00,O2 (UK) LTD,1743099                  ,MKIP ENVIRONMENTAL SERVICES,Cellphone,Internal Trading Cost Centres
Swale Borough Council,29UM,03/08/2016,1143123,62.00,O2 (UK) LTD,1743099                  ,MKIP ENVIRONMENTAL SERVICES,Cellphone,Internal Trading Cost Centres
Swale Borough Council,29UM,03/08/2016,1143123,69.00,O2 (UK) LTD,1743099                  ,ENVIRONMENTAL RESPONSE TEAM,Cellphone,Internal Trading Cost Centres
Swale Borough Council,29UM,03/08/2016,1143123,10.20,O2 (UK) LTD,1743099                  ,COMMISSIONING & CUSTOMER CONTACT,Cellphone,Internal Trading Cost Centres
Swale Borough Council,29UM,03/08/2016,1143123,7.00,O2 (UK) LTD,1743099                  ,PLANNING SERVICES,Cellphone,Internal Trading Cost Centres
Swale Borough Council,29UM,03/08/2016,1143123,79.50,O2 (UK) LTD,1743099                  ,LEISURE & OPEN SPACES,Cellphone,Internal Trading Cost Centres
Swale Borough Council,29UM,03/08/2016,1143123,19.50,O2 (UK) LTD,1743099                  ,CHIEF EXECUTIVE,Cellphone,Internal Trading Cost Centres
Swale Borough Council,29UM,03/08/2016,1143123,9.50,O2 (UK) LTD,1743099                  ,DIRECTOR OF CORPORATE SERVICES,Cellphone,Internal Trading Cost Centres
Swale Borough Council,29UM,03/08/2016,1143123,10.00,O2 (UK) LTD,1743099                  ,DIRECTOR OF REGENERATION,Cellphone,Internal Trading Cost Centres
Swale Borough Council,29UM,03/08/2016,1143123,21.00,O2 (UK) LTD,1743099                  ,COMMISSIONING & CUSTOMER CONTACT,Cellphone,Internal Trading Cost Centres
Swale Borough Council,29UM,03/08/2016,1143123,7.15,O2 (UK) LTD,1743099                  ,COMMISSIONING & CUSTOMER CONTACT,Cellphone,Internal Trading Cost Centres
Swale Borough Council,29UM,03/08/2016,1143123,10.80,O2 (UK) LTD,1743099                  ,POLICY,Cellphone,Internal Trading Cost Centres
Swale Borough Council,29UM,03/08/2016,1143123,14.50,O2 (UK) LTD,1743099                  ,COMMUNICATIONS,Cellphone,Internal Trading Cost Centres
Swale Borough Council,29UM,03/08/2016,1143123,9.50,O2 (UK) LTD,1743099                  ,POLICY,Cellphone,Internal Trading Cost Centres
Swale Borough Council,29UM,03/08/2016,1143123,39.00,O2 (UK) LTD,1743099                  ,ENVIRONMENTAL RESPONSE TEAM,Cellphone,Internal Trading Cost Centres
Swale Borough Council,29UM,03/08/2016,1143123,29.00,O2 (UK) LTD,1743099                  ,MKIP LEGAL SERVICES,Cellphone,Internal Trading Cost Centres
Swale Borough Council,29UM,03/08/2016,1143123,2.00,O2 (UK) LTD,1743099                  ,LEISURE & OPEN SPACES,Cellphone,Cultural and Related Services
Swale Borough Council,29UM,03/08/2016,1143123,2.00,O2 (UK) LTD,1743099                  ,HOUSING SERVICES,Cellphone,Housing
Swale Borough Council,29UM,03/08/2016,1143123,38.00,O2 (UK) LTD,1743099                  ,HOUSING SERVICES,Cellphone,Housing
Swale Borough Council,29UM,03/08/2016,1143123,26.00,O2 (UK) LTD,1743099                  ,ENVIRONMENTAL RESPONSE TEAM,Cellphone,Environmental and Regulatory Services
Swale Borough Council,29UM,03/08/2016,1143123,7.20,O2 (UK) LTD,1743099                  ,TOURISM & SPORTS DEVELOPMENT,Cellphone,Cultural and Related Services
Swale Borough Council,29UM,03/08/2016,1143123,3.00,O2 (UK) LTD,1743099                  ,HOUSING SERVICES,Cellphone,Housing
Swale Borough Council,29UM,03/08/2016,1143126,10.00,O2 (UK) LTD,1743099                  ,COMMUNITY SAFETY,Cellphone,Planning and Development Services
Swale Borough Council,29UM,03/08/2016,1143126,7.00,O2 (UK) LTD,1743099                  ,COMMUNITY SAFETY,Cellphone,Planning and Development Services
Swale Borough Council,29UM,03/08/2016,1143126,23.50,O2 (UK) LTD,1743099                  ,COMMUNITY SAFETY,Cellphone,Environmental and Regulatory Services
Swale Borough Council,29UM,03/08/2016,1143126,9.50,O2 (UK) LTD,1743099                  ,POLICY,Cellphone,Corporate & Democratic Core
Swale Borough Council,29UM,03/08/2016,1143126,15.00,O2 (UK) LTD,1743099                  ,PLANNING SERVICES,Cellphone,Planning and Development Services
Swale Borough Council,29UM,03/08/2016,1143126,10.50,O2 (UK) LTD,1743099                  ,PLANNING SERVICES,Cellphone,Planning and Development Services
Swale Borough Council,29UM,03/08/2016,1143126,9.50,O2 (UK) LTD,1743099                  ,EMERGENCY PLANNING,Cellphone,Central Services to the Public
Swale Borough Council,29UM,03/08/2016,1143126,30.00,O2 (UK) LTD,1743099                  ,SERVICE DELIVERY,Cellphone,Cultural and Related Services
Swale Borough Council,29UM,03/08/2016,1143126,37.00,O2 (UK) LTD,1743099                  ,HOUSING SERVICES,Cellphone,Housing
Swale Borough Council,29UM,03/08/2016,1143126,25.00,O2 (UK) LTD,1743099                  ,REVENUE SERVICES,Cellphone,Housing
Swale Borough Council,29UM,03/08/2016,1143126,7.00,O2 (UK) LTD,1743099                  ,HOUSING SERVICES,Cellphone,Housing
Swale Borough Council,29UM,03/08/2016,1143126,7.00,O2 (UK) LTD,1743099                  ,DEMOCRATIC & ELECTORAL SERVICES,Cellphone,Internal Trading Cost Centres
Swale Borough Council,29UM,03/08/2016,1143126,9.50,O2 (UK) LTD,1743099                  ,DIRECTOR OF CORPORATE SERVICES,Cellphone,Internal Trading Cost Centres
Swale Borough Council,29UM,03/08/2016,1143126,57.00,O2 (UK) LTD,1743099                  ,PROPERTY SERVICES,Cellphone,Internal Trading Cost Centres
Swale Borough Council,29UM,03/08/2016,1143126,7.00,O2 (UK) LTD,1743099                  ,ECONOMY & COMMUNITIES,Cellphone,Internal Trading Cost Centres
Swale Borough Council,29UM,03/08/2016,1143126,19.00,O2 (UK) LTD,1743099                  ,TOURISM & SPORTS DEVELOPMENT,Cellphone,Internal Trading Cost Centres
Swale Borough Council,29UM,03/08/2016,1143126,31.00,O2 (UK) LTD,1743099                  ,ECONOMIC DEVELOPMENT,Cellphone,Internal Trading Cost Centres
Swale Borough Council,29UM,03/08/2016,1143126,20.00,O2 (UK) LTD,1743099                  ,SERVICE DELIVERY,Cellphone,Internal Trading Cost Centres
Swale Borough Council,29UM,03/08/2016,1143126,137.00,O2 (UK) LTD,1743099                  ,CONTRACT & PROCUREMENT,Cellphone,Internal Trading Cost Centres
Swale Borough Council,29UM,03/08/2016,1143126,53.00,O2 (UK) LTD,1743099                  ,MKIP ENVIRONMENTAL SERVICES,Cellphone,Internal Trading Cost Centres
Swale Borough Council,29UM,03/08/2016,1143126,49.00,O2 (UK) LTD,1743099                  ,MKIP ENVIRONMENTAL SERVICES,Cellphone,Internal Trading Cost Centres
Swale Borough Council,29UM,03/08/2016,1143126,78.50,O2 (UK) LTD,1743099                  ,ENVIRONMENTAL RESPONSE TEAM,Cellphone,Internal Trading Cost Centres
Swale Borough Council,29UM,03/08/2016,1143126,9.00,O2 (UK) LTD,1743099                  ,COMMISSIONING & CUSTOMER CONTACT,Cellphone,Internal Trading Cost Centres
Swale Borough Council,29UM,03/08/2016,1143126,11.00,O2 (UK) LTD,1743099                  ,PLANNING SERVICES,Cellphone,Internal Trading Cost Centres
Swale Borough Council,29UM,03/08/2016,1143126,67.00,O2 (UK) LTD,1743099                  ,LEISURE & OPEN SPACES,Cellphone,Internal Trading Cost Centres
Swale Borough Council,29UM,03/08/2016,1143126,19.50,O2 (UK) LTD,1743099                  ,CHIEF EXECUTIVE,Cellphone,Internal Trading Cost Centres
Swale Borough Council,29UM,03/08/2016,1143126,9.50,O2 (UK) LTD,1743099                  ,DIRECTOR OF CORPORATE SERVICES,Cellphone,Internal Trading Cost Centres
Swale Borough Council,29UM,03/08/2016,1143126,9.50,O2 (UK) LTD,1743099                  ,DIRECTOR OF REGENERATION,Cellphone,Internal Trading Cost Centres
Swale Borough Council,29UM,03/08/2016,1143126,13.50,O2 (UK) LTD,1743099                  ,COMMISSIONING & CUSTOMER CONTACT,Cellphone,Internal Trading Cost Centres
Swale Borough Council,29UM,03/08/2016,1143126,7.12,O2 (UK) LTD,1743099                  ,COMMISSIONING & CUSTOMER CONTACT,Cellphone,Internal Trading Cost Centres
Swale Borough Council,29UM,03/08/2016,1143126,7.50,O2 (UK) LTD,1743099                  ,POLICY,Cellphone,Internal Trading Cost Centres
Swale Borough Council,29UM,03/08/2016,1143126,14.09,O2 (UK) LTD,1743099                  ,COMMUNICATIONS,Cellphone,Internal Trading Cost Centres
Swale Borough Council,29UM,03/08/2016,1143126,9.50,O2 (UK) LTD,1743099                  ,POLICY,Cellphone,Internal Trading Cost Centres
Swale Borough Council,29UM,03/08/2016,1143126,39.00,O2 (UK) LTD,1743099                  ,ENVIRONMENTAL RESPONSE TEAM,Cellphone,Internal Trading Cost Centres
Swale Borough Council,29UM,03/08/2016,1143126,30.00,O2 (UK) LTD,1743099                  ,MKIP LEGAL SERVICES,Cellphone,Internal Trading Cost Centres
Swale Borough Council,29UM,03/08/2016,1143126,9.50,O2 (UK) LTD,1743099                  ,DIRECTOR OF CORPORATE SERVICES,Cellphone,Environmental and Regulatory Services
Swale Borough Council,29UM,03/08/2016,1143126,2.00,O2 (UK) LTD,1743099                  ,LEISURE & OPEN SPACES,Cellphone,Cultural and Related Services
Swale Borough Council,29UM,03/08/2016,1143126,2.00,O2 (UK) LTD,1743099                  ,HOUSING SERVICES,Cellphone,Housing
Swale Borough Council,29UM,03/08/2016,1143126,39.00,O2 (UK) LTD,1743099                  ,HOUSING SERVICES,Cellphone,Housing
Swale Borough Council,29UM,03/08/2016,1143126,26.00,O2 (UK) LTD,1743099                  ,ENVIRONMENTAL RESPONSE TEAM,Cellphone,Environmental and Regulatory Services
Swale Borough Council,29UM,03/08/2016,1143126,9.00,O2 (UK) LTD,1743099                  ,TOURISM & SPORTS DEVELOPMENT,Cellphone,Cultural and Related Services
Swale Borough Council,29UM,03/08/2016,1143126,2.82,O2 (UK) LTD,1743099                  ,HOUSING SERVICES,Cellphone,Housing
Swale Borough Council,29UM,03/08/2016,1143740,4750.00,PACIFIC WINDOWS & CONSERVATORIES LTD,4447548                  ,HOUSING SERVICES,Housing Renovation Grants,Not used in this Structure
Swale Borough Council,29UM,03/08/2016,1142858,956.00,PARAMOUNT INDEPENDENT PROPERTY SERVICES,                         ,HOUSING SERVICES,B & B - Landlords Payments,Housing
Swale Borough Council,29UM,03/08/2016,1143687,290.33,PORTAKABIN LIMITED,685303                   ,LEISURE & OPEN SPACES,Maintenance - Grounds,Environmental and Regulatory Services
Swale Borough Council,29UM,03/08/2016,1143423,620.37,POSTURITE LTD,                         ,COMMUNITY SAFETY,Furniture,Environmental and Regulatory Services
Swale Borough Council,29UM,03/08/2016,1143559,2425.20,QS CONSULT,                         ,COMMUNITY SAFETY,Capitalised Fees And Charges,Not used in this Structure
Swale Borough Council,29UM,03/08/2016,1143612,900.00,QUEENBOROUGH TOWN COMMUNITY CENTRE,                         ,COMMUNITY SAFETY,Grants & Subscriptions,Central Services to the Public
Swale Borough Council,29UM,03/08/2016,1143196,420.00,REARDON PROPERTIES,                         ,HOUSING SERVICES,B & B - Landlords Payments,Housing
Swale Borough Council,29UM,03/08/2016,1143197,875.00,REARDON PROPERTIES,                         ,HOUSING SERVICES,B & B - Landlords Payments,Housing
Swale Borough Council,29UM,03/08/2016,1143389,784.60,REARDON PROPERTIES,                         ,HOUSING SERVICES,B & B - Landlords Payments,Housing
Swale Borough Council,29UM,03/08/2016,1143390,875.00,REARDON PROPERTIES,                         ,HOUSING SERVICES,B & B - Landlords Payments,Housing
Swale Borough Council,29UM,03/08/2016,1142621,1388.40,RSP RAIL TRAVEL ACCOUNT - (DT),                         ,FINANCIAL SERVICES,Travel Warrants (Staff Travel),Internal Trading Cost Centres
Swale Borough Council,29UM,03/08/2016,1143382,1655.90,RSP RAIL TRAVEL ACCOUNT - (DT),                         ,FINANCIAL SERVICES,Travel Warrants (Staff Travel),Internal Trading Cost Centres
Swale Borough Council,29UM,03/08/2016,1143634,300.00,SHEPPEY UNIT SEA CADETS CORPS,                         ,COMMUNITY SAFETY,Grants & Subscriptions,Central Services to the Public
Swale Borough Council,29UM,03/08/2016,1143694,257.25,SMART EVENT SUPPORT LTD.,8943723                  ,LEISURE & OPEN SPACES,Maintenance - Grounds,Cultural and Related Services
Swale Borough Council,29UM,03/08/2016,1143609,510.00,SMARTWATER TECHNOLOGY LTD,                         ,COMMUNITY SAFETY,Fees And Services,Planning and Development Services
Swale Borough Council,29UM,03/08/2016,1143686,605.00,STRI LTD,3188329                  ,LEISURE & OPEN SPACES,Consultancy/Specialist Advice,Cultural and Related Services
Swale Borough Council,29UM,03/08/2016,1143239,1220.00,TEDDSONS & SONS LTD,08945129                 ,LEISURE & OPEN SPACES,Maintenance - Grounds,Cultural and Related Services
Swale Borough Council,29UM,03/08/2016,1143239,1127.19,TEDDSONS & SONS LTD,08945129                 ,LEISURE & OPEN SPACES,Maintenance - Grounds,Cultural and Related Services
Swale Borough Council,29UM,03/08/2016,1143464,960.00,TEDDSONS & SONS LTD,08945129                 ,LEISURE & OPEN SPACES,Maintenance - Grounds,Cultural and Related Services
Swale Borough Council,29UM,03/08/2016,1143464,330.00,TEDDSONS & SONS LTD,08945129                 ,LEISURE & OPEN SPACES,Maintenance - Grounds,Cultural and Related Services
Swale Borough Council,29UM,03/08/2016,1143468,480.00,TEDDSONS & SONS LTD,08945129                 ,LEISURE & OPEN SPACES,Maintenance - Grounds,Cultural and Related Services
Swale Borough Council,29UM,03/08/2016,1143468,150.00,TEDDSONS & SONS LTD,08945129                 ,LEISURE & OPEN SPACES,Maintenance - Grounds,Cultural and Related Services
Swale Borough Council,29UM,03/08/2016,1143469,240.00,TEDDSONS & SONS LTD,08945129                 ,LEISURE & OPEN SPACES,Maintenance - Grounds,Cultural and Related Services
Swale Borough Council,29UM,03/08/2016,1143469,39.00,TEDDSONS & SONS LTD,08945129                 ,LEISURE & OPEN SPACES,Maintenance - Grounds,Cultural and Related Services
Swale Borough Council,29UM,03/08/2016,1143707,600.00,TEYNHAM CARNIVAL ASSOCIATION,                         ,COMMUNITY SAFETY,Grants & Subscriptions,Central Services to the Public
Swale Borough Council,29UM,03/08/2016,1143610,800.00,THE HARMONY THERAPY TRUST,                         ,COMMUNITY SAFETY,Grants & Subscriptions,Central Services to the Public
Swale Borough Council,29UM,03/08/2016,1143413,1604.42,THE JOHN WOODWARD PARTNERSHIP,                         ,PLANNING SERVICES,Fees And Services,Planning and Development Services
Swale Borough Council,29UM,03/08/2016,1143730,1583.00,TLC STAIRLIFTS LTD,OC337646                 ,HOUSING SERVICES,Housing Renovation Grants,Not used in this Structure
Swale Borough Council,29UM,03/08/2016,1142932,1400.00,TRAFALGAR TAVERN LTD,07999329                 ,HOUSING SERVICES,B & B - Landlords Payments,Housing
Swale Borough Council,29UM,03/08/2016,1143054,1500.00,TRAFALGAR TAVERN LTD,07999329                 ,HOUSING SERVICES,B & B - Landlords Payments,Housing
Swale Borough Council,29UM,03/08/2016,1143259,1825.00,TRAFALGAR TAVERN LTD,07999329                 ,HOUSING SERVICES,B & B - Landlords Payments,Housing
Swale Borough Council,29UM,03/08/2016,1143425,1750.00,TRAFALGAR TAVERN LTD,07999329                 ,HOUSING SERVICES,B & B - Landlords Payments,Housing
Swale Borough Council,29UM,03/08/2016,1143594,285.99,TRIBUNE GRAPHICS LTD,                         ,SERVICE DELIVERY,Maintenance - Grounds,Cultural and Related Services
Swale Borough Council,29UM,03/08/2016,1143127,900.00,VP PROPERTY DEVELOPMENT LTD,                         ,HOUSING SERVICES,B & B - Landlords Payments,Housing
Swale Borough Council,29UM,03/08/2016,1143662,2000.00,WEALD WOODSCAPES LTD,8028446                  ,LEISURE & OPEN SPACES,Maintenance - Grounds,Cultural and Related Services
Swale Borough Council,29UM,03/08/2016,1143387,2282.00,WHISTL UK LIMITED,04417047                 ,REVENUE SERVICES,Postage,Central Services to the Public
Swale Borough Council,29UM,03/08/2016,1143387,1141.00,WHISTL UK LIMITED,04417047                 ,REVENUE SERVICES,Postage,Housing
Swale Borough Council,29UM,03/08/2016,1143387,424.02,WHISTL UK LIMITED,04417047                 ,PROPERTY SERVICES,Postage,Holding Codes
Swale Borough Council,29UM,03/08/2016,1143732,548.40,WILLOW TREE HOME SOLUTIONS LTD,                         ,HOUSING SERVICES,Housing Renovation Grants,Not used in this Structure
Swale Borough Council,29UM,03/08/2016,1143733,461.70,WILLOW TREE HOME SOLUTIONS LTD,                         ,HOUSING SERVICES,Housing Renovation Grants,Not used in this Structure
Swale Borough Council,29UM,03/08/2016,1143734,511.50,WILLOW TREE HOME SOLUTIONS LTD,                         ,HOUSING SERVICES,Housing Renovation Grants,Not used in this Structure
Swale Borough Council,29UM,03/08/2016,1143735,5207.00,WILLOW TREE HOME SOLUTIONS LTD,                         ,HOUSING SERVICES,Housing Renovation Grants,Not used in this Structure
Swale Borough Council,29UM,03/08/2016,1143736,1190.60,WILLOW TREE HOME SOLUTIONS LTD,                         ,HOUSING SERVICES,Housing Renovation Grants,Not used in this Structure
Swale Borough Council,29UM,10/08/2016,1143828,750.00,4 GLOBAL CONSULTING,                         ,LEISURE & OPEN SPACES,Consultancy/Specialist Advice,Cultural and Related Services
Swale Borough Council,29UM,10/08/2016,1143829,500.00,4 GLOBAL CONSULTING,                         ,LEISURE & OPEN SPACES,Consultancy/Specialist Advice,Cultural and Related Services
Swale Borough Council,29UM,10/08/2016,1143915,7782.30,ACORN MAINTENANCE SERVICES,3546898                  ,HOUSING SERVICES,Housing Renovation Grants,Not used in this Structure
Swale Borough Council,29UM,10/08/2016,1143815,42.43,ALLSTAR BUSINESS SOLUTIONS LTD - (DT),1073098                  ,DEMOCRATIC & ELECTORAL SERVICES,Petrol/Derv & Oil,Corporate & Democratic Core
Swale Borough Council,29UM,10/08/2016,1143815,37.27,ALLSTAR BUSINESS SOLUTIONS LTD - (DT),1073098                  ,SERVICE DELIVERY,Petrol/Derv & Oil,Cultural and Related Services
Swale Borough Council,29UM,10/08/2016,1143815,223.73,ALLSTAR BUSINESS SOLUTIONS LTD - (DT),1073098                  ,ENVIRONMENTAL RESPONSE TEAM,Fuel For Contract Vehicles,Internal Trading Cost Centres
Swale Borough Council,29UM,10/08/2016,1143815,1.60,ALLSTAR BUSINESS SOLUTIONS LTD - (DT),1073098                  ,LEISURE & OPEN SPACES,Fuel For Contract Vehicles,Cultural and Related Services
Swale Borough Council,29UM,10/08/2016,1143815,42.59,ALLSTAR BUSINESS SOLUTIONS LTD - (DT),1073098                  ,ENVIRONMENTAL RESPONSE TEAM,Fuel For Contract Vehicles,Environmental and Regulatory Services
Swale Borough Council,29UM,10/08/2016,1143815,68.88,ALLSTAR BUSINESS SOLUTIONS LTD - (DT),1073098                  ,HOUSING SERVICES,Fuel For Contract Vehicles,Housing
Swale Borough Council,29UM,10/08/2016,1143723,12881.69,APCOA PARKING (UK) LTD,2572947                  ,CAR PARKS,Private Contractors,Highway and Transport Services
Swale Borough Council,29UM,10/08/2016,1143723,19322.54,APCOA PARKING (UK) LTD,2572947                  ,CAR PARKS,Private Contractors,Highway and Transport Services
Swale Borough Council,29UM,10/08/2016,1143790,380.00,BATES JPW ADVERTISING LTD,784540                   ,ECONOMIC DEVELOPMENT,Recruitment Adverts - Staff,Planning and Development Services
Swale Borough Council,29UM,10/08/2016,1143818,1125.00,BATES JPW ADVERTISING LTD,784540                   ,FINANCIAL SERVICES,Recruitment Adverts - Staff,Internal Trading Cost Centres
Swale Borough Council,29UM,10/08/2016,1143952,7341.41,BEVAN BRITTAN LLP,OC309219                 ,MKIP LEGAL SERVICES,Payments in Year,Ledger/Suspense Codes
Swale Borough Council,29UM,10/08/2016,1143490,107451.36,BLENWOOD LTD,4383277                  ,LEISURE & OPEN SPACES,Grounds Maint Suspense,Cultural and Related Services
Swale Borough Council,29UM,10/08/2016,1143491,4416.47,BLENWOOD LTD,4383277                  ,LEISURE & OPEN SPACES,Grounds Maint Suspense,Cultural and Related Services
Swale Borough Council,29UM,10/08/2016,1143806,13149.36,BORDEN PARISH COUNCIL,                         ,PLANNING SERVICES,S106 Income Unapplied,Ledger/Suspense Codes
Swale Borough Council,29UM,10/08/2016,1143719,300.00,BOUGHTON UNDER BLEAN PARISH COUNC,                         ,COMMUNITY SAFETY,Grants & Subscriptions,Central Services to the Public
Swale Borough Council,29UM,10/08/2016,1143817,1925.00,BROXAP LIMITED,2583752                  ,CONTRACT & PROCUREMENT,Equipment Purchase,Environmental and Regulatory Services
Swale Borough Council,29UM,10/08/2016,1143636,2100.00,BT DEVELOPMENTS,                         ,HOUSING SERVICES,B & B - Landlords Payments,Housing
Swale Borough Council,29UM,10/08/2016,1143775,2500.00,CBRE LTD,3536032                  ,PLANNING SERVICES,Fees And Services,Planning and Development Services
Swale Borough Council,29UM,10/08/2016,1143849,120.00,CBS MAINTENANCE SERVICES LTD,                         ,LEISURE & OPEN SPACES,Service Contracts,Environmental and Regulatory Services
Swale Borough Council,29UM,10/08/2016,1143849,120.00,CBS MAINTENANCE SERVICES LTD,                         ,COMMUNITY SAFETY,Service Contracts,Cultural and Related Services
Swale Borough Council,29UM,10/08/2016,1143849,120.00,CBS MAINTENANCE SERVICES LTD,                         ,PROPERTY SERVICES,Service Contracts,Trading Undertaking
Swale Borough Council,29UM,10/08/2016,1143849,120.00,CBS MAINTENANCE SERVICES LTD,                         ,PROPERTY SERVICES,Service Contracts,Corporate & Democratic Core
Swale Borough Council,29UM,10/08/2016,1143849,120.00,CBS MAINTENANCE SERVICES LTD,                         ,CONTRACT & PROCUREMENT,Service Contracts,Environmental and Regulatory Services
Swale Borough Council,29UM,10/08/2016,1143849,120.00,CBS MAINTENANCE SERVICES LTD,                         ,LEISURE & OPEN SPACES,Service Contracts,Cultural and Related Services
Swale Borough Council,29UM,10/08/2016,1143849,120.00,CBS MAINTENANCE SERVICES LTD,                         ,LEISURE & OPEN SPACES,Service Contracts,Cultural and Related Services
Swale Borough Council,29UM,10/08/2016,1143565,3333.00,CHALKWELL COACH HIRE LTD,2520842                  ,PLANNING SERVICES,Payments in Year,Ledger/Suspense Codes
Swale Borough Council,29UM,10/08/2016,1143776,510.00,CIPFA BUSINESS LTD,2376684                  ,COMMISSIONING & CUSTOMER CONTACT,Performance Fund Expenditure,Ledger/Suspense Codes
Swale Borough Council,29UM,10/08/2016,1143798,21000.00,COLWIN GROUP,2911673                  ,CAR PARKS,Construction,Not used in this Structure
Swale Borough Council,29UM,10/08/2016,1143778,2577.99,COMENSURA LTD,04085767                 ,HUMAN RESOURCES,Agency/Contract Staff,Internal Trading Cost Centres
Swale Borough Council,29UM,10/08/2016,1143605,2493.16,DHA PLANNING,2683290                  ,PLANNING SERVICES,Fees And Services,Internal Trading Cost Centres
Swale Borough Council,29UM,10/08/2016,1143606,3459.04,DHA PLANNING,2683290                  ,PLANNING SERVICES,Fees And Services,Internal Trading Cost Centres
Swale Borough Council,29UM,10/08/2016,1143802,762.54,DHA PLANNING,2683290                  ,PROPERTY SERVICES,Consultancy/Specialist Advice,Internal Trading Cost Centres
Swale Borough Council,29UM,10/08/2016,1143804,2635.50,DHA PLANNING,2683290                  ,PROPERTY SERVICES,Consultancy/Specialist Advice,Internal Trading Cost Centres
Swale Borough Council,29UM,10/08/2016,1143783,753.00,DISCLOSURE & BARRING SERVICE (DT),                         ,SERVICE DELIVERY,Fees And Services,Environmental and Regulatory Services
Swale Borough Council,29UM,10/08/2016,1143909,8820.00,DOLPHIN STAIRLIFTS (KENT),04181846                 ,HOUSING SERVICES,Housing Renovation Grants,Not used in this Structure
Swale Borough Council,29UM,10/08/2016,1143912,980.00,DOLPHIN STAIRLIFTS (KENT),04181846                 ,HOUSING SERVICES,Housing Renovation Grants,Not used in this Structure
Swale Borough Council,29UM,10/08/2016,1143807,767.03,HAYS ACCOUNTANCY PERSONNEL,975677                   ,EMERGENCY PLANNING,Other Local Authorities,Central Services to the Public
Swale Borough Council,29UM,10/08/2016,1143924,-250.00,HOLM PLACE ANGLERS,                         ,COMMUNITY SAFETY,Grants & Subscriptions,Central Services to the Public
Swale Borough Council,29UM,10/08/2016,1143925,250.00,HOLM PLACE ANGLERS,                         ,COMMUNITY SAFETY,Grants & Subscriptions,Central Services to the Public
Swale Borough Council,29UM,10/08/2016,1143424,2400.00,HOUSING REVIEWS LTD,5008207                  ,HOUSING SERVICES,Homelessness  Prevention Services,Housing
Swale Borough Council,29UM,10/08/2016,1143779,500.00,HUBBARD & HOUGHTON CONSTRUCTION LTD,                         ,HOUSING SERVICES,Staying Put small repairs (contractors),Housing
Swale Borough Council,29UM,10/08/2016,1143811,307.00,HUBBARD & HOUGHTON CONSTRUCTION LTD,                         ,HOUSING SERVICES,Staying Put small repairs (contractors),Housing
Swale Borough Council,29UM,10/08/2016,1143911,505.57,HUBBARD & HOUGHTON CONSTRUCTION LTD,                         ,HOUSING SERVICES,Housing Renovation Grants,Not used in this Structure
Swale Borough Council,29UM,10/08/2016,1143834,250.00,REDACTED PERSONAL INFORMATION,                         ,TOURISM & SPORTS DEVELOPMENT,Grants & Subscriptions,Cultural and Related Services
Swale Borough Council,29UM,10/08/2016,1143836,250.00,REDACTED PERSONAL INFORMATION,                         ,TOURISM & SPORTS DEVELOPMENT,Grants & Subscriptions,Cultural and Related Services
Swale Borough Council,29UM,10/08/2016,1143907,1000.00,J & D SYSTEMS,                         ,HOUSING SERVICES,Housing Renovation Grants,Not used in this Structure
Swale Borough Council,29UM,10/08/2016,1143908,4383.00,J & D SYSTEMS,                         ,HOUSING SERVICES,Housing Renovation Grants,Not used in this Structure
Swale Borough Council,29UM,10/08/2016,1143914,4159.46,J & D SYSTEMS,                         ,HOUSING SERVICES,Housing Renovation Grants,Not used in this Structure
Swale Borough Council,29UM,10/08/2016,1143638,5150.00,J N CLEARANCE,                         ,CONTRACT & PROCUREMENT,"Clearance Of Waste,Fly Tipping",Environmental and Regulatory Services
Swale Borough Council,29UM,10/08/2016,1143800,1465.00,JASMIL KENNELS,05595524                 ,ENVIRONMENTAL RESPONSE TEAM,Fees And Services,Environmental and Regulatory Services
Swale Borough Council,29UM,10/08/2016,1143800,-465.00,JASMIL KENNELS,05595524                 ,ENVIRONMENTAL RESPONSE TEAM,Income collected by Dog Kennels,Environmental and Regulatory Services
Swale Borough Council,29UM,10/08/2016,1143786,2112.96,KENT FIRE & RESCUE SERVICE,                         ,EMERGENCY PLANNING,Fees And Services,Central Services to the Public
Swale Borough Council,29UM,10/08/2016,1143384,20891.00,KGB CLEANING & SUPPORT SERVICES LTD,                         ,CONTRACT & PROCUREMENT,Private Contractors,Environmental and Regulatory Services
Swale Borough Council,29UM,10/08/2016,1143822,11731.30,KINGDOM SECURITY LIMITED,                         ,ENVIRONMENTAL RESPONSE TEAM,Fees And Services,Planning and Development Services
Swale Borough Council,29UM,10/08/2016,1143626,1575.00,LUSHLAND,4289261                  ,PLANNING SERVICES,Fees And Services,Planning and Development Services
Swale Borough Council,29UM,10/08/2016,1143651,340.00,LYRECO UK LTD,                         ,PROPERTY SERVICES,Paper,Internal Trading Cost Centres
Swale Borough Council,29UM,10/08/2016,1143221,642.00,M A WOOD,                         ,LEISURE & OPEN SPACES,Maintenance - Grounds,Cultural and Related Services
Swale Borough Council,29UM,10/08/2016,1143426,1296.00,MACDONALD & COMPANY FREELANCE LTD,3882135                  ,PLANNING SERVICES,Agency/Contract Staff,Internal Trading Cost Centres
Swale Borough Council,29UM,10/08/2016,1143230,70155.95,MAIDSTONE BOROUGH COUNCIL,                         ,CONTRACT & PROCUREMENT,Private Contractors,Environmental and Regulatory Services
Swale Borough Council,29UM,10/08/2016,1143230,192849.28,MAIDSTONE BOROUGH COUNCIL,                         ,CONTRACT & PROCUREMENT,Private Contractors,Environmental and Regulatory Services
Swale Borough Council,29UM,10/08/2016,1143602,645.00,MAIDSTONE BOROUGH COUNCIL,                         ,REVENUE SERVICES,Court Costs,Housing
Swale Borough Council,29UM,10/08/2016,1143414,1628.00,MATCHTECH,4426336                  ,PLANNING SERVICES,Agency/Contract Staff,Internal Trading Cost Centres
Swale Borough Council,29UM,10/08/2016,1143703,1628.00,MATCHTECH,4426336                  ,PLANNING SERVICES,Agency/Contract Staff,Internal Trading Cost Centres
Swale Borough Council,29UM,10/08/2016,1143872,966.00,MAYLOW CONSTRUCTION LTD,                         ,LEISURE & OPEN SPACES,Maintenance - Grounds,Environmental and Regulatory Services
Swale Borough Council,29UM,10/08/2016,1143873,930.00,MAYLOW CONSTRUCTION LTD,                         ,LEISURE & OPEN SPACES,Maintenance - Grounds,Cultural and Related Services
Swale Borough Council,29UM,10/08/2016,1143637,2045.60,MEDWAY ACCOMMODATION LIMITED,                         ,HOUSING SERVICES,B & B - Landlords Payments,Housing
Swale Borough Council,29UM,10/08/2016,1143637,426.17,MEDWAY ACCOMMODATION LIMITED,                         ,HOUSING SERVICES,B & B - Landlords Payments,Housing
Swale Borough Council,29UM,10/08/2016,1143701,2080.80,METRIC GROUP LTD,2560839                  ,CAR PARKS,Equipment Maintenance,Highway and Transport Services
Swale Borough Council,29UM,10/08/2016,1143702,585.00,METRIC GROUP LTD,2560839                  ,CAR PARKS,Fees - Licence,Highway and Transport Services
Swale Borough Council,29UM,10/08/2016,1143493,1700.00,REDACTED PERSONAL INFORMATION,                         ,PLANNING SERVICES,Legal Fees,Planning and Development Services
Swale Borough Council,29UM,10/08/2016,1143493,340.00,REDACTED PERSONAL INFORMATION,                         ,PLANNING SERVICES,Legal Fees,Planning and Development Services
Swale Borough Council,29UM,10/08/2016,1143640,4866.67,MODERN MINDSET LTD,                         ,DEMOCRATIC & ELECTORAL SERVICES,Performance Fund Expenditure,Ledger/Suspense Codes
Swale Borough Council,29UM,10/08/2016,1143278,800.00,REDACTED PERSONAL INFORMATION,                         ,ENVIRONMENTAL RESPONSE TEAM,Legal Fees,Internal Trading Cost Centres
Swale Borough Council,29UM,10/08/2016,1143278,160.00,REDACTED PERSONAL INFORMATION,                         ,ENVIRONMENTAL RESPONSE TEAM,Legal Fees,Internal Trading Cost Centres
Swale Borough Council,29UM,10/08/2016,1143279,450.00,REDACTED PERSONAL INFORMATION,                         ,ENVIRONMENTAL RESPONSE TEAM,Legal Fees,Internal Trading Cost Centres
Swale Borough Council,29UM,10/08/2016,1143279,90.00,REDACTED PERSONAL INFORMATION,                         ,ENVIRONMENTAL RESPONSE TEAM,Legal Fees,Internal Trading Cost Centres
Swale Borough Council,29UM,10/08/2016,1143458,1500.00,REDACTED PERSONAL INFORMATION,                         ,PLANNING SERVICES,Legal Fees,Planning and Development Services
Swale Borough Council,29UM,10/08/2016,1143458,300.00,REDACTED PERSONAL INFORMATION,                         ,PLANNING SERVICES,Legal Fees,Planning and Development Services
Swale Borough Council,29UM,10/08/2016,1143704,520.00,REDACTED PERSONAL INFORMATION,                         ,HOUSING SERVICES,B & B - Landlords Payments,Housing
Swale Borough Council,29UM,10/08/2016,1143896,250.00,OYSTER BAY PHOTOGRAPHY,                         ,COMMUNICATIONS,Advertising & Promotion,Internal Trading Cost Centres
Swale Borough Council,29UM,10/08/2016,1143721,3675.00,P BINNIE CONSULTANCY LTD,07794784                 ,ECONOMIC DEVELOPMENT,Consultancy/Specialist Advice,Planning and Development Services
Swale Borough Council,29UM,10/08/2016,1143874,29.54,P&MM LTD,1090180                  ,HUMAN RESOURCES,Fees And Services,Corporate & Democratic Core
Swale Borough Council,29UM,10/08/2016,1143814,444.00,PAKFLATT (UK) LTD,                         ,DEMOCRATIC & ELECTORAL SERVICES,Stationery,Ledger/Suspense Codes
Swale Borough Council,29UM,10/08/2016,1143697,3473.00,PARAMOUNT INDEPENDENT PROPERTY SERVICES,                         ,HOUSING SERVICES,B & B - Landlords Payments,Housing
Swale Borough Council,29UM,10/08/2016,1143120,3521.10,PINSENT MASONS LLP,OC333653                 ,ECONOMIC DEVELOPMENT,Consultancy/Specialist Advice,Planning and Development Services
Swale Borough Council,29UM,10/08/2016,1143825,250.00,PRO-ACTIONS BUSINESS IMPROVEMENT LTD,07742444                 ,COMMUNITY SAFETY,Fees And Services,Cultural and Related Services
Swale Borough Council,29UM,10/08/2016,1143618,490.00,REARDON PROPERTIES,                         ,HOUSING SERVICES,B & B - Landlords Payments,Housing
Swale Borough Council,29UM,10/08/2016,1143619,830.00,REARDON PROPERTIES,                         ,HOUSING SERVICES,B & B - Landlords Payments,Housing
Swale Borough Council,29UM,10/08/2016,1143850,875.00,REARDON PROPERTIES,                         ,HOUSING SERVICES,B & B - Landlords Payments,Housing
Swale Borough Council,29UM,10/08/2016,1143851,490.00,REARDON PROPERTIES,                         ,HOUSING SERVICES,B & B - Landlords Payments,Housing
Swale Borough Council,29UM,10/08/2016,1143844,360.00,RIPPLEEFFECT,                         ,TOURISM & SPORTS DEVELOPMENT,Fees And Services,Cultural and Related Services
Swale Borough Council,29UM,10/08/2016,1143887,1496.74,ROYAL MAIL GROUP LTD,4138203                  ,REVENUE SERVICES,Postage,Central Services to the Public
Swale Borough Council,29UM,10/08/2016,1143663,2244.25,RP AUSTIN,                         ,MKIP LEGAL SERVICES,Agency/Contract Staff,Internal Trading Cost Centres
Swale Borough Council,29UM,10/08/2016,1143693,375.00,RURAL PLANNING LTD,4426249                  ,PLANNING SERVICES,Fees And Services,Planning and Development Services
Swale Borough Council,29UM,10/08/2016,1143777,300.00,SATEDA,                         ,COMMUNITY SAFETY,Grants & Subscriptions,Planning and Development Services
Swale Borough Council,29UM,10/08/2016,1143698,960.00,SERCO LEISURE OPERATING LIMITED,04687478                 ,PROPERTY SERVICES,Service Contracts,Cultural and Related Services
Swale Borough Council,29UM,10/08/2016,1143799,9036.92,SERCO LEISURE OPERATING LIMITED,04687478                 ,LEISURE & OPEN SPACES,Procurement Contracts Only,Cultural and Related Services
Swale Borough Council,29UM,10/08/2016,1143895,300.00,SHARPE PRITCHARD,                         ,PLANNING SERVICES,Legal Fees,Planning and Development Services
Swale Borough Council,29UM,10/08/2016,1143895,255.00,SHARPE PRITCHARD,                         ,PLANNING SERVICES,Legal Fees,Planning and Development Services
Swale Borough Council,29UM,10/08/2016,1143913,802.65,SOUTH EAST BUILDING CO LTD,1786838                  ,HOUSING SERVICES,Housing Renovation Grants,Not used in this Structure
Swale Borough Council,29UM,10/08/2016,1143614,1705.00,SOUTH EAST ENGLAND COUNCILS,                         ,DEMOCRATIC & ELECTORAL SERVICES,Grants & Subscriptions,Corporate & Democratic Core
Swale Borough Council,29UM,10/08/2016,1143669,1515.43,SOUTHERN WATER SERVICES LIMITED,2366670                  ,CONTRACT & PROCUREMENT,Water - Metered,Environmental and Regulatory Services
Swale Borough Council,29UM,10/08/2016,1143713,1677.66,SOUTHERN WATER SERVICES LIMITED,2366670                  ,CONTRACT & PROCUREMENT,Water - Metered,Environmental and Regulatory Services
Swale Borough Council,29UM,10/08/2016,1143824,400.00,ST BARTHOLOMEWS CHURCH,                         ,COMMUNITY SAFETY,Grants & Subscriptions,Central Services to the Public
Swale Borough Council,29UM,10/08/2016,1143794,11829.37,SWALE COMMUNITY LEISURE LIMITED,31132R                   ,LEISURE & OPEN SPACES,Procurement Contracts Only,Cultural and Related Services
Swale Borough Council,29UM,10/08/2016,1143788,980.00,SYNERGY CONSTRUCTION & PROPERTY CONSULTANTS LLP,                         ,COMMUNITY SAFETY,Capitalised Fees And Charges,Not used in this Structure
Swale Borough Council,29UM,10/08/2016,1143848,1290.82,THE COPYRIGHT LICENSING AGENCY LTD,                         ,COMMUNICATIONS,Fees - Licence,Internal Trading Cost Centres
Swale Borough Council,29UM,10/08/2016,1143784,1000.00,THE HARMONY THERAPY TRUST,                         ,COMMUNITY SAFETY,Grants & Subscriptions,Central Services to the Public
Swale Borough Council,29UM,10/08/2016,1143420,1500.00,TIKSPAC UK LTD,09238130                 ,CONTRACT & PROCUREMENT,Waste and Recycling Promotion / Comm's Projects,Environmental and Regulatory Services
Swale Borough Council,29UM,10/08/2016,1143840,1751.00,TIME ASSURED LIMITED,7483197                  ,PROPERTY SERVICES,Non-Planned Building Maintenance,Cultural and Related Services
Swale Borough Council,29UM,10/08/2016,1143463,3135.00,TOTAL MERCHANDISE LTD,05221288                 ,CONTRACT & PROCUREMENT,Waste and Recycling Promotion / Comm's Projects,Environmental and Regulatory Services
Swale Borough Council,29UM,10/08/2016,1143695,1715.00,TRAFALGAR TAVERN LTD,07999329                 ,HOUSING SERVICES,B & B - Landlords Payments,Housing
Swale Borough Council,29UM,10/08/2016,1143875,1785.00,TRAFALGAR TAVERN LTD,07999329                 ,HOUSING SERVICES,B & B - Landlords Payments,Housing
Swale Borough Council,29UM,10/08/2016,1143585,676.50,VENN GROUP LIMITED,                         ,MKIP LEGAL SERVICES,Agency/Contract Staff,Internal Trading Cost Centres
Swale Borough Council,29UM,10/08/2016,1143586,1230.00,VENN GROUP LIMITED,                         ,MKIP LEGAL SERVICES,Agency/Contract Staff,Internal Trading Cost Centres
Swale Borough Council,29UM,10/08/2016,1143587,871.25,VENN GROUP LIMITED,                         ,MKIP LEGAL SERVICES,Agency/Contract Staff,Internal Trading Cost Centres
Swale Borough Council,29UM,10/08/2016,1143588,1230.00,VENN GROUP LIMITED,                         ,MKIP LEGAL SERVICES,Agency/Contract Staff,Internal Trading Cost Centres
Swale Borough Council,29UM,10/08/2016,1143589,922.50,VENN GROUP LIMITED,                         ,MKIP LEGAL SERVICES,Agency/Contract Staff,Internal Trading Cost Centres
Swale Borough Council,29UM,10/08/2016,1143590,1215.24,VENN GROUP LIMITED,                         ,MKIP LEGAL SERVICES,Agency/Contract Staff,Internal Trading Cost Centres
Swale Borough Council,29UM,10/08/2016,1143591,850.75,VENN GROUP LIMITED,                         ,MKIP LEGAL SERVICES,Agency/Contract Staff,Internal Trading Cost Centres
Swale Borough Council,29UM,10/08/2016,1143592,1243.94,VENN GROUP LIMITED,                         ,MKIP LEGAL SERVICES,Agency/Contract Staff,Internal Trading Cost Centres
Swale Borough Council,29UM,10/08/2016,1143808,922.50,VENN GROUP LIMITED,                         ,MKIP LEGAL SERVICES,Agency/Contract Staff,Internal Trading Cost Centres
Swale Borough Council,29UM,10/08/2016,1143809,632.22,VENN GROUP LIMITED,                         ,MKIP LEGAL SERVICES,Agency/Contract Staff,Internal Trading Cost Centres
Swale Borough Council,29UM,10/08/2016,1143810,1230.00,VENN GROUP LIMITED,                         ,MKIP LEGAL SERVICES,Agency/Contract Staff,Internal Trading Cost Centres
Swale Borough Council,29UM,10/08/2016,1143830,250.00,WEED MANAGEMENT LTD,4321175                  ,LEISURE & OPEN SPACES,Maintenance - Grounds,Cultural and Related Services
Swale Borough Council,29UM,10/08/2016,1143832,250.00,WEED MANAGEMENT LTD,4321175                  ,LEISURE & OPEN SPACES,Maintenance - Grounds,Environmental and Regulatory Services
Swale Borough Council,29UM,10/08/2016,1143557,527.40,WHISTL UK LIMITED,04417047                 ,REVENUE SERVICES,Postage,Central Services to the Public
Swale Borough Council,29UM,10/08/2016,1143557,263.70,WHISTL UK LIMITED,04417047                 ,REVENUE SERVICES,Postage,Housing
Swale Borough Council,29UM,10/08/2016,1143557,1042.37,WHISTL UK LIMITED,04417047                 ,PROPERTY SERVICES,Postage,Holding Codes
Swale Borough Council,29UM,10/08/2016,1143781,508.27,WHISTL UK LIMITED,04417047                 ,REVENUE SERVICES,Postage,Central Services to the Public
Swale Borough Council,29UM,10/08/2016,1143781,254.14,WHISTL UK LIMITED,04417047                 ,REVENUE SERVICES,Postage,Housing
Swale Borough Council,29UM,10/08/2016,1143781,659.06,WHISTL UK LIMITED,04417047                 ,PROPERTY SERVICES,Postage,Holding Codes
Swale Borough Council,29UM,10/08/2016,1143708,2370.00,WHITE RESIDENTIAL,                         ,HOUSING SERVICES,B & B - Landlords Payments,Housing
Swale Borough Council,29UM,10/08/2016,1143633,325.25,WILLOW TREE HOME SOLUTIONS LTD,                         ,HOUSING SERVICES,Staying Put small repairs (contractors),Housing
Swale Borough Council,29UM,10/08/2016,1143910,4483.15,WILLOW TREE HOME SOLUTIONS LTD,                         ,HOUSING SERVICES,Housing Renovation Grants,Not used in this Structure
Swale Borough Council,29UM,10/08/2016,1143819,4294.80,WYG ENVIRONMENT PLANNING TRANSPORT LTD,3050297                  ,CONTRACT & PROCUREMENT,Waste and Recycling Promotion / Comm's Projects,Environmental and Regulatory Services
Swale Borough Council,29UM,17/08/2016,1144053,3869.00,ACORN MAINTENANCE SERVICES,3546898                  ,HOUSING SERVICES,Housing Renovation Grants,Not used in this Structure
Swale Borough Council,29UM,17/08/2016,1144054,5261.63,ACORN MAINTENANCE SERVICES,3546898                  ,HOUSING SERVICES,Housing Renovation Grants,Not used in this Structure
Swale Borough Council,29UM,17/08/2016,1144056,5535.00,ACORN MAINTENANCE SERVICES,3546898                  ,HOUSING SERVICES,Housing Renovation Grants,Not used in this Structure
Swale Borough Council,29UM,17/08/2016,1143967,1900.00,ACS SYSTEMS (UK) LTD,2988060                  ,ICT,Payments in Year,Ledger/Suspense Codes
Swale Borough Council,29UM,17/08/2016,1143967,6.50,ACS SYSTEMS (UK) LTD,2988060                  ,ICT,Payments in Year,Ledger/Suspense Codes
Swale Borough Council,29UM,17/08/2016,1143411,1435.00,AMETHYST HORTICULTURE LTD,4464660                  ,CAR PARKS,Nursery Stock,Highway and Transport Services
Swale Borough Council,29UM,17/08/2016,1143411,5532.00,AMETHYST HORTICULTURE LTD,4464660                  ,LEISURE & OPEN SPACES,Nursery Stock,Cultural and Related Services
Swale Borough Council,29UM,17/08/2016,1143411,10008.00,AMETHYST HORTICULTURE LTD,4464660                  ,LEISURE & OPEN SPACES,Nursery Stock,Environmental and Regulatory Services
Swale Borough Council,29UM,17/08/2016,1143998,263.00,ASPLI SAFETY LTD,1387726                  ,SERVICE DELIVERY,Protective Clothing,Cultural and Related Services
Swale Borough Council,29UM,17/08/2016,1143996,667.69,BLENWOOD LTD,4383277                  ,LEISURE & OPEN SPACES,Maintenance - Grounds,Environmental and Regulatory Services
Swale Borough Council,29UM,17/08/2016,1143997,320.61,BLENWOOD LTD,4383277                  ,LEISURE & OPEN SPACES,Maintenance - Grounds,Environmental and Regulatory Services
Swale Borough Council,29UM,17/08/2016,1143867,2492.75,BT REDCARE,1800000                  ,COMMUNITY SAFETY,CCTV Line Rental,Environmental and Regulatory Services
Swale Borough Council,29UM,17/08/2016,1143939,275.00,CHALKWELL COACH HIRE LTD,2520842                  ,CHIEF EXECUTIVE,Coaches / Minibus,Corporate & Democratic Core
Swale Borough Council,29UM,17/08/2016,1144044,388.00,COLOUR FACTORY,5312299                  ,COMMUNICATIONS,Printing - External,Internal Trading Cost Centres
Swale Borough Council,29UM,17/08/2016,1143920,5129.62,COMENSURA LTD,04085767                 ,HUMAN RESOURCES,Agency/Contract Staff,Internal Trading Cost Centres
Swale Borough Council,29UM,17/08/2016,1144050,4801.10,DAYTRAD LIMITED,7654373                  ,HOUSING SERVICES,Housing Renovation Grants,Not used in this Structure
Swale Borough Council,29UM,17/08/2016,1143994,2668.00,GREENSPACE ECOLOGICAL SOLUTIONS LTD,07651548                 ,COMMUNITY SAFETY,Capitalised Fees And Charges,Not used in this Structure
Swale Borough Council,29UM,17/08/2016,1143906,1783.40,HALAROSE LIMITED,1362834                  ,DEMOCRATIC & ELECTORAL SERVICES,Fees And Services,Central Services to the Public
Swale Borough Council,29UM,17/08/2016,1143900,400.00,HARTLIP VILLAGE HALL,                         ,COMMUNITY SAFETY,Grants & Subscriptions,Central Services to the Public
Swale Borough Council,29UM,17/08/2016,1143962,746.85,HAYS ACCOUNTANCY PERSONNEL,975677                   ,EMERGENCY PLANNING,Other Local Authorities,Central Services to the Public
Swale Borough Council,29UM,17/08/2016,1144049,1791.26,HIGHER ELEVATION LTD,                         ,HOUSING SERVICES,Housing Renovation Grants,Not used in this Structure
Swale Borough Council,29UM,17/08/2016,1144058,598.00,HUBBARD & HOUGHTON CONSTRUCTION LTD,                         ,HOUSING SERVICES,Housing Renovation Grants,Not used in this Structure
Swale Borough Council,29UM,17/08/2016,1144059,1421.06,HUBBARD & HOUGHTON CONSTRUCTION LTD,                         ,HOUSING SERVICES,Housing Renovation Grants,Not used in this Structure
Swale Borough Council,29UM,17/08/2016,1144060,1703.70,HUBBARD & HOUGHTON CONSTRUCTION LTD,                         ,HOUSING SERVICES,Housing Renovation Grants,Not used in this Structure
Swale Borough Council,29UM,17/08/2016,1144061,6300.00,HUBBARD & HOUGHTON CONSTRUCTION LTD,                         ,HOUSING SERVICES,Housing Renovation Grants,Not used in this Structure
Swale Borough Council,29UM,17/08/2016,1144001,1427.00,JACKSON LIFT SERVICES LTD,2186996                  ,PROPERTY SERVICES,Service Contracts,Corporate & Democratic Core
Swale Borough Council,29UM,17/08/2016,1143905,4103.06,KENT COUNTY COUNCIL (KCS),                         ,PROPERTY SERVICES,Electricity,Corporate & Democratic Core
Swale Borough Council,29UM,17/08/2016,1143964,429.66,KENT COUNTY COUNCIL (KCS),                         ,PROPERTY SERVICES,Gas,Corporate & Democratic Core
Swale Borough Council,29UM,17/08/2016,1143989,400.00,LEYSDOWN VILLAGE HALL COMMITTEE,                         ,DEMOCRATIC & ELECTORAL SERVICES,Hire Of Premises,Central Services to the Public
Swale Borough Council,29UM,17/08/2016,1144085,750.00,LLOYDS BANK - (DT),                         ,FINANCIAL SERVICES,Bank Charges,Corporate & Democratic Core
Swale Borough Council,29UM,17/08/2016,1144023,684.00,M.T.S. CLEANSING SERVICES LTD,2045340                  ,LEISURE & OPEN SPACES,Clearing Cesspools,Cultural and Related Services
Swale Borough Council,29UM,17/08/2016,1144023,120.00,M.T.S. CLEANSING SERVICES LTD,2045340                  ,LEISURE & OPEN SPACES,Clearing Cesspools,Cultural and Related Services
Swale Borough Council,29UM,17/08/2016,1143879,3168.00,MACDONALD & COMPANY FREELANCE LTD,3882135                  ,PLANNING SERVICES,Agency/Contract Staff,Internal Trading Cost Centres
Swale Borough Council,29UM,17/08/2016,1143245,985.00,MAGEES GUESTHOUSE,                         ,HOUSING SERVICES,B & B - Landlords Payments,Housing
Swale Borough Council,29UM,17/08/2016,1143475,900.00,MAGEES GUESTHOUSE,                         ,HOUSING SERVICES,B & B - Landlords Payments,Housing
Swale Borough Council,29UM,17/08/2016,1143856,15850.00,MAIDSTONE BOROUGH COUNCIL,                         ,REVENUE SERVICES,MKIP Fraud Partnership Charges,Housing
Swale Borough Council,29UM,17/08/2016,1143858,1628.00,MATCHTECH,4426336                  ,PLANNING SERVICES,Agency/Contract Staff,Internal Trading Cost Centres
Swale Borough Council,29UM,17/08/2016,1143865,55491.75,MEDWAY COUNCIL,                         ,COMMUNITY SAFETY,CCTV Monitoring Service,Environmental and Regulatory Services
Swale Borough Council,29UM,17/08/2016,1143888,2219.21,MEDWAY PUBLIC SERVICES LTD,10041989                 ,COMMUNITY SAFETY,CCTV Monitoring Service,Environmental and Regulatory Services
Swale Borough Council,29UM,17/08/2016,1143833,3150.00,MELENGA BUSINESS SOLUTIONS LTD,06148446                 ,FINANCIAL SERVICES,Agency/Contract Staff,Internal Trading Cost Centres
Swale Borough Council,29UM,17/08/2016,1143938,331.20,NEWS PLUS,                         ,COMMUNICATIONS,Newspapers & Periodicals,Corporate & Democratic Core
Swale Borough Council,29UM,17/08/2016,1143916,665.00,NLA MEDIA ACCESS,3003569                  ,COMMUNICATIONS,Fees - Licence,Internal Trading Cost Centres
Swale Borough Council,29UM,17/08/2016,1143974,252.76,NPOWER,                         ,CAR PARKS,Electricity,Highway and Transport Services
Swale Borough Council,29UM,17/08/2016,1143125,9.50,O2 (UK) LTD,1743099                  ,SUSTAINABLE SHEPPEY,Cellphone,Environmental and Regulatory Services
Swale Borough Council,29UM,17/08/2016,1143125,25.00,O2 (UK) LTD,1743099                  ,COMMUNITY SAFETY,Cellphone,Planning and Development Services
Swale Borough Council,29UM,17/08/2016,1143125,7.00,O2 (UK) LTD,1743099                  ,COMMUNITY SAFETY,Cellphone,Planning and Development Services
Swale Borough Council,29UM,17/08/2016,1143125,31.00,O2 (UK) LTD,1743099                  ,COMMUNITY SAFETY,Cellphone,Environmental and Regulatory Services
Swale Borough Council,29UM,17/08/2016,1143125,9.50,O2 (UK) LTD,1743099                  ,POLICY,Cellphone,Corporate & Democratic Core
Swale Borough Council,29UM,17/08/2016,1143125,15.00,O2 (UK) LTD,1743099                  ,PLANNING SERVICES,Cellphone,Planning and Development Services
Swale Borough Council,29UM,17/08/2016,1143125,10.02,O2 (UK) LTD,1743099                  ,PLANNING SERVICES,Cellphone,Planning and Development Services
Swale Borough Council,29UM,17/08/2016,1143125,9.50,O2 (UK) LTD,1743099                  ,EMERGENCY PLANNING,Cellphone,Central Services to the Public
Swale Borough Council,29UM,17/08/2016,1143125,30.00,O2 (UK) LTD,1743099                  ,SERVICE DELIVERY,Cellphone,Cultural and Related Services
Swale Borough Council,29UM,17/08/2016,1143125,40.00,O2 (UK) LTD,1743099                  ,HOUSING SERVICES,Cellphone,Housing
Swale Borough Council,29UM,17/08/2016,1143125,24.00,O2 (UK) LTD,1743099                  ,REVENUE SERVICES,Cellphone,Housing
Swale Borough Council,29UM,17/08/2016,1143125,7.00,O2 (UK) LTD,1743099                  ,HOUSING SERVICES,Cellphone,Housing
Swale Borough Council,29UM,17/08/2016,1143125,37.11,O2 (UK) LTD,1743099                  ,PROPERTY SERVICES,Cellphone,Internal Trading Cost Centres
Swale Borough Council,29UM,17/08/2016,1143125,7.00,O2 (UK) LTD,1743099                  ,DEMOCRATIC & ELECTORAL SERVICES,Cellphone,Internal Trading Cost Centres
Swale Borough Council,29UM,17/08/2016,1143125,9.50,O2 (UK) LTD,1743099                  ,DIRECTOR OF CORPORATE SERVICES,Cellphone,Internal Trading Cost Centres
Swale Borough Council,29UM,17/08/2016,1143125,27.89,O2 (UK) LTD,1743099                  ,PROPERTY SERVICES,Cellphone,Internal Trading Cost Centres
Swale Borough Council,29UM,17/08/2016,1143125,7.00,O2 (UK) LTD,1743099                  ,ECONOMY & COMMUNITIES,Cellphone,Internal Trading Cost Centres
Swale Borough Council,29UM,17/08/2016,1143125,19.00,O2 (UK) LTD,1743099                  ,TOURISM & SPORTS DEVELOPMENT,Cellphone,Internal Trading Cost Centres
Swale Borough Council,29UM,17/08/2016,1143125,30.00,O2 (UK) LTD,1743099                  ,ECONOMIC DEVELOPMENT,Cellphone,Internal Trading Cost Centres
Swale Borough Council,29UM,17/08/2016,1143125,17.00,O2 (UK) LTD,1743099                  ,SERVICE DELIVERY,Cellphone,Internal Trading Cost Centres
Swale Borough Council,29UM,17/08/2016,1143125,136.00,O2 (UK) LTD,1743099                  ,CONTRACT & PROCUREMENT,Cellphone,Internal Trading Cost Centres
Swale Borough Council,29UM,17/08/2016,1143125,59.00,O2 (UK) LTD,1743099                  ,MKIP ENVIRONMENTAL SERVICES,Cellphone,Internal Trading Cost Centres
Swale Borough Council,29UM,17/08/2016,1143125,42.00,O2 (UK) LTD,1743099                  ,MKIP ENVIRONMENTAL SERVICES,Cellphone,Internal Trading Cost Centres
Swale Borough Council,29UM,17/08/2016,1143125,78.50,O2 (UK) LTD,1743099                  ,ENVIRONMENTAL RESPONSE TEAM,Cellphone,Internal Trading Cost Centres
Swale Borough Council,29UM,17/08/2016,1143125,10.00,O2 (UK) LTD,1743099                  ,COMMISSIONING & CUSTOMER CONTACT,Cellphone,Internal Trading Cost Centres
Swale Borough Council,29UM,17/08/2016,1143125,12.00,O2 (UK) LTD,1743099                  ,PLANNING SERVICES,Cellphone,Internal Trading Cost Centres
Swale Borough Council,29UM,17/08/2016,1143125,65.00,O2 (UK) LTD,1743099                  ,LEISURE & OPEN SPACES,Cellphone,Internal Trading Cost Centres
Swale Borough Council,29UM,17/08/2016,1143125,22.00,O2 (UK) LTD,1743099                  ,CHIEF EXECUTIVE,Cellphone,Internal Trading Cost Centres
Swale Borough Council,29UM,17/08/2016,1143125,9.50,O2 (UK) LTD,1743099                  ,DIRECTOR OF CORPORATE SERVICES,Cellphone,Internal Trading Cost Centres
Swale Borough Council,29UM,17/08/2016,1143125,9.50,O2 (UK) LTD,1743099                  ,DIRECTOR OF REGENERATION,Cellphone,Internal Trading Cost Centres
Swale Borough Council,29UM,17/08/2016,1143125,21.00,O2 (UK) LTD,1743099                  ,COMMISSIONING & CUSTOMER CONTACT,Cellphone,Internal Trading Cost Centres
Swale Borough Council,29UM,17/08/2016,1143125,7.00,O2 (UK) LTD,1743099                  ,COMMISSIONING & CUSTOMER CONTACT,Cellphone,Internal Trading Cost Centres
Swale Borough Council,29UM,17/08/2016,1143125,43.00,O2 (UK) LTD,1743099                  ,POLICY,Cellphone,Internal Trading Cost Centres
Swale Borough Council,29UM,17/08/2016,1143125,14.00,O2 (UK) LTD,1743099                  ,COMMUNICATIONS,Cellphone,Internal Trading Cost Centres
Swale Borough Council,29UM,17/08/2016,1143125,38.00,O2 (UK) LTD,1743099                  ,ENVIRONMENTAL RESPONSE TEAM,Cellphone,Internal Trading Cost Centres
Swale Borough Council,29UM,17/08/2016,1143125,28.00,O2 (UK) LTD,1743099                  ,MKIP LEGAL SERVICES,Cellphone,Internal Trading Cost Centres
Swale Borough Council,29UM,17/08/2016,1143125,2.00,O2 (UK) LTD,1743099                  ,LEISURE & OPEN SPACES,Cellphone,Cultural and Related Services
Swale Borough Council,29UM,17/08/2016,1143125,2.00,O2 (UK) LTD,1743099                  ,HOUSING SERVICES,Cellphone,Housing
Swale Borough Council,29UM,17/08/2016,1143125,34.00,O2 (UK) LTD,1743099                  ,HOUSING SERVICES,Cellphone,Housing
Swale Borough Council,29UM,17/08/2016,1143125,26.00,O2 (UK) LTD,1743099                  ,ENVIRONMENTAL RESPONSE TEAM,Cellphone,Environmental and Regulatory Services
Swale Borough Council,29UM,17/08/2016,1143125,8.00,O2 (UK) LTD,1743099                  ,TOURISM & SPORTS DEVELOPMENT,Cellphone,Cultural and Related Services
Swale Borough Council,29UM,17/08/2016,1143125,2.00,O2 (UK) LTD,1743099                  ,HOUSING SERVICES,Cellphone,Housing
Swale Borough Council,29UM,17/08/2016,1143859,1438.20,PATROL,                         ,CAR PARKS,Parking Adjudication Fees,Highway and Transport Services
Swale Borough Council,29UM,17/08/2016,1143859,1438.20,PATROL,                         ,CAR PARKS,Parking Adjudication Fees,Highway and Transport Services
Swale Borough Council,29UM,17/08/2016,1143805,4746.00,PELLINGS LLP,326178                   ,PROPERTY SERVICES,Consultancy/Specialist Advice,Internal Trading Cost Centres
Swale Borough Council,29UM,17/08/2016,1144029,553.52,PHOENIX SOFTWARE LTD,                         ,TRANSFORMATION PROJECT,Computer Equipment & Materials,Corporate & Democratic Core
Swale Borough Council,29UM,17/08/2016,1143857,995.00,RAMSAY & CO LANDSCAPE ARCHITECTURE,                         ,COMMUNITY SAFETY,Capitalised Fees And Charges,Not used in this Structure
Swale Borough Council,29UM,17/08/2016,1143940,999.00,RIVERSIDE CARE AND SUPPORT,                         ,TOURISM & SPORTS DEVELOPMENT,Grants & Subscriptions,Cultural and Related Services
Swale Borough Council,29UM,17/08/2016,1143904,400.00,SHARPE PRITCHARD,                         ,PLANNING SERVICES,Legal Fees,Planning and Development Services
Swale Borough Council,29UM,17/08/2016,1143992,750.00,SHEPPEY MATTERS,3946296                  ,TOURISM & SPORTS DEVELOPMENT,Grants & Subscriptions,Cultural and Related Services
Swale Borough Council,29UM,17/08/2016,1143901,1850.00,SITTINGBOURNE COMMUNITY RADIO,                         ,COMMUNITY SAFETY,Grants & Subscriptions,Central Services to the Public
Swale Borough Council,29UM,17/08/2016,1143826,3229.51,SOUTHERN COMMUNICATIONS LTD,1328040                  ,ICT,Telephone,Corporate & Democratic Core
Swale Borough Council,29UM,17/08/2016,1143787,878.68,SOUTHERN WATER SERVICES LIMITED,2366670                  ,PROPERTY SERVICES,Water - Metered,Corporate & Democratic Core
Swale Borough Council,29UM,17/08/2016,1143787,1530.32,SOUTHERN WATER SERVICES LIMITED,2366670                  ,PROPERTY SERVICES,Water - Metered,Corporate & Democratic Core
Swale Borough Council,29UM,17/08/2016,1144011,345.00,STONEBRIDGE ALLOTMENT SOCIETY,                         ,COMMUNITY SAFETY,Grants & Subscriptions,Central Services to the Public
Swale Borough Council,29UM,17/08/2016,1143944,250.00,TAYLOR BROTHERS LTD,                         ,SERVICE DELIVERY,Maintenance - Grounds,Cultural and Related Services
Swale Borough Council,29UM,17/08/2016,1144007,498.00,THREE TOWNS OFFICE EQUIPMENT LTD,                         ,ECONOMIC DEVELOPMENT,Furniture,Internal Trading Cost Centres
Swale Borough Council,29UM,17/08/2016,1144051,1427.00,TLC STAIRLIFTS LTD,OC337646                 ,HOUSING SERVICES,Housing Renovation Grants,Not used in this Structure
Swale Borough Council,29UM,17/08/2016,1144057,1888.00,TLC STAIRLIFTS LTD,OC337646                 ,HOUSING SERVICES,Housing Renovation Grants,Not used in this Structure
Swale Borough Council,29UM,17/08/2016,1143991,400.00,UPCHURCH TWINNING GROUP,                         ,COMMUNITY SAFETY,Grants & Subscriptions,Central Services to the Public
Swale Borough Council,29UM,17/08/2016,1143965,1230.00,VENN GROUP LIMITED,                         ,MKIP LEGAL SERVICES,Agency/Contract Staff,Internal Trading Cost Centres
Swale Borough Council,29UM,17/08/2016,1144052,672.90,WILLOW TREE HOME SOLUTIONS LTD,                         ,HOUSING SERVICES,Housing Renovation Grants,Not used in this Structure
Swale Borough Council,29UM,17/08/2016,1144017,400.00,ZC SOCIAL MEDIA LTD,08035393                 ,ECONOMY & COMMUNITIES,Regeneration Fund Expenditure,Ledger/Suspense Codes
Swale Borough Council,29UM,24/08/2016,1144111,325.00,ACORN MAINTENANCE SERVICES,3546898                  ,HOUSING SERVICES,Staying Put small repairs (contractors),Housing
Swale Borough Council,29UM,24/08/2016,1144068,690.15,BBM SUSTAINABLE DESIGN LTD,4597504                  ,COMMUNITY SAFETY,Capitalised Fees And Charges,Not used in this Structure
Swale Borough Council,29UM,24/08/2016,1143886,1000.00,CALLCREDIT LIMITED,3961870                  ,HOUSING SERVICES,Fees And Services,Housing
Swale Borough Council,29UM,24/08/2016,1144073,2228.33,CHILDREN AND FAMILIES LTD,                         ,COMMUNITY SAFETY,Fees And Services,Planning and Development Services
Swale Borough Council,29UM,24/08/2016,1144105,666.66,CLARKES SPORTS STUDIO,                         ,LEISURE & OPEN SPACES,Grants & Subscriptions,Cultural and Related Services
Swale Borough Council,29UM,24/08/2016,1144104,1170.00,COLOUR N CHROME LTD,                         ,SERVICE DELIVERY,Maintenance - Grounds,Cultural and Related Services
Swale Borough Council,29UM,24/08/2016,1144069,5375.02,COMENSURA LTD,04085767                 ,HUMAN RESOURCES,Agency/Contract Staff,Internal Trading Cost Centres
Swale Borough Council,29UM,24/08/2016,1144233,3178.49,CO-OP BANK PLC - (DT),                         ,REVENUE SERVICES,Bank Charges Pay Point,Central Services to the Public
Swale Borough Council,29UM,24/08/2016,1144233,42.11,CO-OP BANK PLC - (DT),                         ,REVENUE SERVICES,Bank Charges Pay Point,Central Services to the Public
Swale Borough Council,29UM,24/08/2016,1144233,57.79,CO-OP BANK PLC - (DT),                         ,REVENUE SERVICES,Bank Charges Pay Point,Housing
Swale Borough Council,29UM,24/08/2016,1144233,4.48,CO-OP BANK PLC - (DT),                         ,EXCHEQUER,Bank Charges Pay Point,Internal Trading Cost Centres
Swale Borough Council,29UM,24/08/2016,1144233,38.97,CO-OP BANK PLC - (DT),                         ,EXCHEQUER,Bank Charges Pay Point,Internal Trading Cost Centres
Swale Borough Council,29UM,24/08/2016,1144136,750.00,DIVERSITY HOUSE,                         ,TOURISM & SPORTS DEVELOPMENT,Grants & Subscriptions,Cultural and Related Services
Swale Borough Council,29UM,24/08/2016,1144129,2400.00,FAVERSHAM POOL MNGMT.COMMITTEE,                         ,COMMUNITY SAFETY,Grants & Subscriptions,Central Services to the Public
Swale Borough Council,29UM,24/08/2016,1144075,1166.67,FAVERSHAM TROPHIES,                         ,CHIEF EXECUTIVE,Prizes/Awards,Public Health
Swale Borough Council,29UM,24/08/2016,1144110,746.85,HAYS ACCOUNTANCY PERSONNEL,975677                   ,EMERGENCY PLANNING,Other Local Authorities,Central Services to the Public
Swale Borough Council,29UM,24/08/2016,1144116,2446.33,HOLIDAY INN SITTINGBOURNE,                         ,CHIEF EXECUTIVE,Catering Provisions,Public Health
Swale Borough Council,29UM,24/08/2016,1144100,325.00,IMPERIAL CIVIL ENFORCEMENT SOLUTIONS,2023383                  ,CAR PARKS,Computer Equipment & Materials,Highway and Transport Services
Swale Borough Council,29UM,24/08/2016,1144190,5134.68,J & D SYSTEMS,                         ,HOUSING SERVICES,Housing Renovation Grants,Not used in this Structure
Swale Borough Council,29UM,24/08/2016,1144191,8523.00,J & D SYSTEMS,                         ,HOUSING SERVICES,Housing Renovation Grants,Not used in this Structure
Swale Borough Council,29UM,24/08/2016,1144125,5000.00,KENT COMMUNITY HEALTH NHS TRUST,                         ,TOURISM & SPORTS DEVELOPMENT,Fees And Services,Cultural and Related Services
Swale Borough Council,29UM,24/08/2016,1144039,9457.24,KENT COUNTY COUNCIL,                         ,COMMISSIONING & CUSTOMER CONTACT,Contracts,Internal Trading Cost Centres
Swale Borough Council,29UM,24/08/2016,1144021,1680.00,MACDONALD & COMPANY FREELANCE LTD,3882135                  ,PLANNING SERVICES,Agency/Contract Staff,Internal Trading Cost Centres
Swale Borough Council,29UM,24/08/2016,1143720,1260.00,MAGEES GUESTHOUSE,                         ,HOUSING SERVICES,B & B - Landlords Payments,Housing
Swale Borough Council,29UM,24/08/2016,1143990,1628.00,MATCHTECH,4426336                  ,PLANNING SERVICES,Agency/Contract Staff,Internal Trading Cost Centres
Swale Borough Council,29UM,24/08/2016,1144071,987.00,MAYLOW CONSTRUCTION LTD,                         ,LEISURE & OPEN SPACES,Maintenance - Grounds,Environmental and Regulatory Services
Swale Borough Council,29UM,24/08/2016,1144032,55491.75,MEDWAY COUNCIL,                         ,COMMUNITY SAFETY,CCTV Monitoring Service,Environmental and Regulatory Services
Swale Borough Council,29UM,24/08/2016,1144034,1000.00,MEDWAY PUBLIC SERVICES LTD,10041989                 ,COMMUNITY SAFETY,CCTV Monitoring Service,Environmental and Regulatory Services
Swale Borough Council,29UM,24/08/2016,1144166,1000.00,REDACTED PERSONAL INFORMATION,                         ,HOUSING SERVICES,RDS - Landlord claim on Bond Scheme,Housing
Swale Borough Council,29UM,24/08/2016,1144096,950.00,REDACTED PERSONAL INFORMATION,                         ,ENVIRONMENTAL RESPONSE TEAM,Legal Fees,Internal Trading Cost Centres
Swale Borough Council,29UM,24/08/2016,1144096,190.00,REDACTED PERSONAL INFORMATION,                         ,ENVIRONMENTAL RESPONSE TEAM,Legal Fees,Internal Trading Cost Centres
Swale Borough Council,29UM,24/08/2016,1144097,500.00,REDACTED PERSONAL INFORMATION,                         ,ENVIRONMENTAL RESPONSE TEAM,Legal Fees,Internal Trading Cost Centres
Swale Borough Council,29UM,24/08/2016,1144097,100.00,REDACTED PERSONAL INFORMATION,                         ,ENVIRONMENTAL RESPONSE TEAM,Legal Fees,Internal Trading Cost Centres
Swale Borough Council,29UM,24/08/2016,1144098,1750.00,REDACTED PERSONAL INFORMATION,                         ,ENVIRONMENTAL RESPONSE TEAM,Legal Fees,Internal Trading Cost Centres
Swale Borough Council,29UM,24/08/2016,1144098,350.00,REDACTED PERSONAL INFORMATION,                         ,ENVIRONMENTAL RESPONSE TEAM,Legal Fees,Internal Trading Cost Centres
Swale Borough Council,29UM,24/08/2016,1144122,250.00,REDACTED PERSONAL INFORMATION,                         ,ENVIRONMENTAL RESPONSE TEAM,Legal Fees,Internal Trading Cost Centres
Swale Borough Council,29UM,24/08/2016,1144122,50.00,REDACTED PERSONAL INFORMATION,                         ,ENVIRONMENTAL RESPONSE TEAM,Legal Fees,Internal Trading Cost Centres
Swale Borough Council,29UM,24/08/2016,1144119,230.00,MR J W GATES,                         ,SERVICE DELIVERY,Maintenance - Grounds,Cultural and Related Services
Swale Borough Council,29UM,24/08/2016,1144119,108.40,MR J W GATES,                         ,SERVICE DELIVERY,Maintenance - Grounds,Cultural and Related Services
Swale Borough Council,29UM,24/08/2016,1144185,700.00,MR J W GATES,                         ,LEISURE & OPEN SPACES,Maintenance - Grounds,Cultural and Related Services
Swale Borough Council,29UM,24/08/2016,1144153,850.00,NIGEL KAY LTD,05620983                 ,CHIEF EXECUTIVE,Consultancy/Specialist Advice,Corporate & Democratic Core
Swale Borough Council,29UM,24/08/2016,1144246,780.00,REDACTED PERSONAL INFORMATION,                         ,REVENUE SERVICES,Fees And Services,Housing
Swale Borough Council,29UM,24/08/2016,1144234,262.50,THE WESSEX HOTEL,                         ,DEMOCRATIC & ELECTORAL SERVICES,Conference,Corporate & Democratic Core
Swale Borough Council,29UM,24/08/2016,1144234,262.50,THE WESSEX HOTEL,                         ,DEMOCRATIC & ELECTORAL SERVICES,Conference,Corporate & Democratic Core
Swale Borough Council,29UM,24/08/2016,1144235,82.46,WICKES,,LEISURE & OPEN SPACES,Maintenance - Grounds,Cultural and Related Services
Swale Borough Council,29UM,24/08/2016,1144235,14.03,AMAZON,,LEISURE & OPEN SPACES,Equipment Purchase,Cultural and Related Services
Swale Borough Council,29UM,24/08/2016,1144235,45.37,SAINSBURY'S,,TOURISM & SPORTS DEVELOPMENT,Catering Provisions,Cultural and Related Services
Swale Borough Council,29UM,24/08/2016,1144236,35.78,THIRSTY CUPS,,PROPERTY SERVICES,Equipment Purchase,Corporate & Democratic Core
Swale Borough Council,29UM,24/08/2016,1144237,18.45,SAINSBURY'S,,DEMOCRATIC & ELECTORAL SERVICES,Hospitality Allowance - Mayor,Corporate & Democratic Core
Swale Borough Council,29UM,24/08/2016,1144238,35.00,INFORMATION COMMISSIONER'S OFFICE,,DEMOCRATIC & ELECTORAL SERVICES,Fees & Services,Internal Trading Cost Centres
Swale Borough Council,29UM,24/08/2016,1144238,10.33,CP PLUS,,DIRECTOR OF CORPORATE SERVICES,Staff Travel-Buses & Trains,Internal Trading Cost Centres
Swale Borough Council,29UM,24/08/2016,1144239,49.16,SPORTS DIRECT,,CHIEF EXECUTIVE,Equipment Purchase,Corporate & Democratic Core
Swale Borough Council,29UM,24/08/2016,1144240,121.40,SOUTHERN WATER SERVICES LIMITED,                         ,HOUSING SERVICES,Water - Rateable Value,Housing
Swale Borough Council,29UM,24/08/2016,1144240,463.34,PREMIER INN,                         ,HOUSING SERVICES,B & B - Landlords Payments,Housing
Swale Borough Council,29UM,24/08/2016,1144240,456.67,PREMIER INN,                         ,HOUSING SERVICES,B & B - Landlords Payments,Housing
Swale Borough Council,29UM,24/08/2016,1144240,45.83,ABBEY HOTEL,                         ,HOUSING SERVICES,Homelessness  Prevention Services,Housing
Swale Borough Council,29UM,24/08/2016,1144240,30.00,VALS CARS,                         ,HOUSING SERVICES,General Travel Non Staff,Housing
Swale Borough Council,29UM,24/08/2016,1144240,473.35,PREMIER INN,                         ,HOUSING SERVICES,B & B - Landlords Payments,Housing
Swale Borough Council,29UM,24/08/2016,1144240,65.00,PREMIER INN,                         ,HOUSING SERVICES,B & B - Landlords Payments,Housing
Swale Borough Council,29UM,24/08/2016,1144240,565.84,PREMIER INN,                         ,HOUSING SERVICES,B & B - Landlords Payments,Housing
Swale Borough Council,29UM,24/08/2016,1144241,37.00,POUNDLAND,,CHIEF EXECUTIVE,Equipment Purchase,Public Health
Swale Borough Council,29UM,24/08/2016,1144241,49.64,ASDA,,CHIEF EXECUTIVE,Catering Provisions,Public Health
Swale Borough Council,29UM,24/08/2016,1144242,309.00,HMCTS,                         ,REVENUE SERVICES,Fees And Services,Central Services to the Public
Swale Borough Council,29UM,24/08/2016,1144243,23.40,HM PASSPORT OFFICE,                         ,HOUSING SERVICES,Fees And Services,Housing
Swale Borough Council,29UM,24/08/2016,1144243,7.29,OYEZ FORMS,                         ,HOUSING SERVICES,Fees And Services,Housing
Swale Borough Council,29UM,24/08/2016,1144243,39.98,ARGOS,                         ,HOUSING SERVICES,Staying Put - Materials,Housing
Swale Borough Council,29UM,24/08/2016,1144243,25.53,WICKES,                         ,HOUSING SERVICES,Staying Put - Materials,Housing
Swale Borough Council,29UM,24/08/2016,1144243,39.98,ARGOS,                         ,HOUSING SERVICES,Staying Put - Materials,Housing
Swale Borough Council,29UM,24/08/2016,1144243,14.22,WICKES,                         ,HOUSING SERVICES,Staying Put - Materials,Housing
Swale Borough Council,29UM,24/08/2016,1144243,80.00,CARPET TRADE SALES,                         ,HOUSING SERVICES,Staying Put - Materials,Housing
Swale Borough Council,29UM,24/08/2016,1144243,76.16,BREWERS ,                         ,HOUSING SERVICES,Staying Put - Materials,Housing
Swale Borough Council,29UM,24/08/2016,1144244,5.70,PAYBYPHONE PARKING TWBC,,MKIP LEGAL SERVICES,Car Park Fees,Internal Trading Cost Centres
Swale Borough Council,29UM,24/08/2016,1144244,5.70,PAYBYPHONE PARKING TWBC,,MKIP LEGAL SERVICES,Car Park Fees,Internal Trading Cost Centres
Swale Borough Council,29UM,24/08/2016,1144244,5.70,PAYBYPHONE PARKING TWBC,,MKIP LEGAL SERVICES,Car Park Fees,Internal Trading Cost Centres
Swale Borough Council,29UM,24/08/2016,1144244,5.70,PAYBYPHONE PARKING TWBC,,MKIP LEGAL SERVICES,Car Park Fees,Internal Trading Cost Centres
Swale Borough Council,29UM,24/08/2016,1144244,5.70,PAYBYPHONE PARKING TWBC,,MKIP LEGAL SERVICES,Car Park Fees,Internal Trading Cost Centres
Swale Borough Council,29UM,24/08/2016,1144244,5.70,PAYBYPHONE PARKING TWBC,,MKIP LEGAL SERVICES,Car Park Fees,Internal Trading Cost Centres
Swale Borough Council,29UM,24/08/2016,1144244,5.70,PAYBYPHONE PARKING TWBC,,MKIP LEGAL SERVICES,Car Park Fees,Internal Trading Cost Centres
Swale Borough Council,29UM,24/08/2016,1144244,5.70,PAYBYPHONE PARKING TWBC,,MKIP LEGAL SERVICES,Car Park Fees,Internal Trading Cost Centres
Swale Borough Council,29UM,24/08/2016,1144244,5.70,PAYBYPHONE PARKING TWBC,,MKIP LEGAL SERVICES,Car Park Fees,Internal Trading Cost Centres
Swale Borough Council,29UM,24/08/2016,1144244,5.70,PAYBYPHONE PARKING TWBC,,MKIP LEGAL SERVICES,Car Park Fees,Internal Trading Cost Centres
Swale Borough Council,29UM,24/08/2016,1144244,5.70,PAYBYPHONE PARKING TWBC,,MKIP LEGAL SERVICES,Car Park Fees,Internal Trading Cost Centres
Swale Borough Council,29UM,24/08/2016,1144244,2.20,PAYBYPHONE PARKING TWBC,,MKIP LEGAL SERVICES,Car Park Fees,Internal Trading Cost Centres
Swale Borough Council,29UM,24/08/2016,1144245,24.54,WICKES,                         ,COMMUNITY SAFETY,Non-Planned Building Maintenance,Cultural and Related Services
Swale Borough Council,29UM,24/08/2016,1144245,55.00,WICKES,                         ,PROPERTY SERVICES,Non-Planned Building Maintenance,Cultural and Related Services
Swale Borough Council,29UM,24/08/2016,1144245,21.86,CITY ELECTRICAL FACTORS,                         ,LEISURE & OPEN SPACES,Non-Planned Building Maintenance,Cultural and Related Services
Swale Borough Council,29UM,24/08/2016,1144245,143.76,SITTINGBOURNE SHOES,                         ,CONTRACT & PROCUREMENT,Equipment Purchase,Environmental and Regulatory Services
Swale Borough Council,29UM,24/08/2016,1144245,75.00,JC LOCK & SAFE,                         ,CONTRACT & PROCUREMENT,Equipment Purchase,Environmental and Regulatory Services
Swale Borough Council,29UM,24/08/2016,1144245,36.00,WK SHOE REPAIRS,                         ,CONTRACT & PROCUREMENT,Equipment Purchase,Environmental and Regulatory Services
Swale Borough Council,29UM,24/08/2016,1144188,1000.00,RDL PLASTERING & DRYLINING LTD,7191923                  ,HOUSING SERVICES,Housing Renovation Grants,Not used in this Structure
Swale Borough Council,29UM,24/08/2016,1144055,1230.00,THE CO-OPERATIVE FUNERALCARE,30808R                   ,MKIP ENVIRONMENTAL SERVICES,Funeral Expenses,Environmental and Regulatory Services
Swale Borough Council,29UM,24/08/2016,1144037,498.00,THREE TOWNS OFFICE EQUIPMENT LTD,                         ,REVENUE SERVICES,Furniture,Central Services to the Public
Swale Borough Council,29UM,24/08/2016,1144189,1461.00,TLC STAIRLIFTS LTD,OC337646                 ,HOUSING SERVICES,Housing Renovation Grants,Not used in this Structure
Swale Borough Council,29UM,24/08/2016,1144112,1230.00,VENN GROUP LIMITED,                         ,MKIP LEGAL SERVICES,Agency/Contract Staff,Internal Trading Cost Centres
Swale Borough Council,29UM,24/08/2016,1144227,4884.44,WORLDPAY (DT),07316500                 ,REVENUE SERVICES,Commission Paid,Central Services to the Public
Swale Borough Council,29UM,24/08/2016,1144227,288.35,WORLDPAY (DT),07316500                 ,REVENUE SERVICES,Commission Paid,Central Services to the Public
Swale Borough Council,29UM,24/08/2016,1144227,50.60,WORLDPAY (DT),07316500                 ,REVENUE SERVICES,Commission Paid,Housing
Swale Borough Council,29UM,24/08/2016,1144227,36.29,WORLDPAY (DT),07316500                 ,EXCHEQUER,Commission Paid,Internal Trading Cost Centres
Swale Borough Council,29UM,24/08/2016,1144227,1073.44,WORLDPAY (DT),07316500                 ,EXCHEQUER,Commission Paid,Internal Trading Cost Centres
Swale Borough Council,29UM,24/08/2016,1144227,444.47,WORLDPAY (DT),07316500                 ,EXCHEQUER,Commission Paid,Internal Trading Cost Centres
Swale Borough Council,29UM,24/08/2016,1144227,9.99,WORLDPAY (DT),07316500                 ,ICT,Fees And Services,Internal Trading Cost Centres
Swale Borough Council,29UM,31/08/2016,1144337,4733.10,ACORN MAINTENANCE SERVICES,3546898                  ,HOUSING SERVICES,Housing Renovation Grants,Not used in this Structure
Swale Borough Council,29UM,31/08/2016,1144109,43.88,ALLSTAR BUSINESS SOLUTIONS LTD - (DT),1073098                  ,DEMOCRATIC & ELECTORAL SERVICES,Petrol/Derv & Oil,Corporate & Democratic Core
Swale Borough Council,29UM,31/08/2016,1144109,104.19,ALLSTAR BUSINESS SOLUTIONS LTD - (DT),1073098                  ,SERVICE DELIVERY,Petrol/Derv & Oil,Cultural and Related Services
Swale Borough Council,29UM,31/08/2016,1144109,118.88,ALLSTAR BUSINESS SOLUTIONS LTD - (DT),1073098                  ,ENVIRONMENTAL RESPONSE TEAM,Fuel For Contract Vehicles,Internal Trading Cost Centres
Swale Borough Council,29UM,31/08/2016,1144109,43.06,ALLSTAR BUSINESS SOLUTIONS LTD - (DT),1073098                  ,ENVIRONMENTAL RESPONSE TEAM,Fuel For Contract Vehicles,Environmental and Regulatory Services
Swale Borough Council,29UM,31/08/2016,1144142,824.10,BEVAN BRITTAN LLP,OC309219                 ,MKIP LEGAL SERVICES,Fees And Services,Internal Trading Cost Centres
Swale Borough Council,29UM,31/08/2016,1144187,1330.00,BT DEVELOPMENTS,                         ,HOUSING SERVICES,B & B - Landlords Payments,Housing
Swale Borough Council,29UM,31/08/2016,1144138,1269.14,CBS MAINTENANCE SERVICES LTD,                         ,PROPERTY SERVICES,Non-Planned Building Maintenance,Corporate & Democratic Core
Swale Borough Council,29UM,31/08/2016,1144139,790.97,CBS MAINTENANCE SERVICES LTD,                         ,CONTRACT & PROCUREMENT,Non-Planned Building Maintenance,Environmental and Regulatory Services
Swale Borough Council,29UM,31/08/2016,1144293,270.00,CD SUPPLIES LTD,                         ,LEISURE & OPEN SPACES,Maintenance - Grounds,Cultural and Related Services
Swale Borough Council,29UM,31/08/2016,1144130,451.70,CITY & KENT CLEANING LTD,                         ,PROPERTY SERVICES,Cleaning Materials,Internal Trading Cost Centres
Swale Borough Council,29UM,31/08/2016,1144334,7081.10,COLDWELL CONSTRUCTION LTD,4814340                  ,HOUSING SERVICES,Housing Renovation Grants,Not used in this Structure
Swale Borough Council,29UM,31/08/2016,1144006,359.00,CONTRACT SECURITY SERVICES,2461362                  ,EXCHEQUER,Cash Security,Internal Trading Cost Centres
Swale Borough Council,29UM,31/08/2016,1144006,3394.56,CONTRACT SECURITY SERVICES,2461362                  ,CAR PARKS,Cash Security,Highway and Transport Services
Swale Borough Council,29UM,31/08/2016,1144301,1000.00,DIVERSITY HOUSE,                         ,TOURISM & SPORTS DEVELOPMENT,Grants & Subscriptions,Cultural and Related Services
Swale Borough Council,29UM,31/08/2016,1144338,1841.14,DOLPHIN STAIRLIFTS (KENT),04181846                 ,HOUSING SERVICES,Housing Renovation Grants,Not used in this Structure
Swale Borough Council,29UM,31/08/2016,1144281,2029.50,ECOLOGIA ENVIRONMENTAL SOLUTIONS,                         ,LEISURE & OPEN SPACES,Consultancy/Specialist Advice,Cultural and Related Services
Swale Borough Council,29UM,31/08/2016,1144282,1414.00,ECOLOGIA ENVIRONMENTAL SOLUTIONS,                         ,LEISURE & OPEN SPACES,Consultancy/Specialist Advice,Cultural and Related Services
Swale Borough Council,29UM,31/08/2016,1144216,271.36,EDF ENERGY,2228297                  ,MKIP ENVIRONMENTAL SERVICES,Electricity,Internal Trading Cost Centres
Swale Borough Council,29UM,31/08/2016,1144218,285.25,EDF ENERGY,2228297                  ,LEISURE & OPEN SPACES,Electricity,Cultural and Related Services
Swale Borough Council,29UM,31/08/2016,1144291,746.85,HAYS ACCOUNTANCY PERSONNEL,975677                   ,EMERGENCY PLANNING,Other Local Authorities,Central Services to the Public
Swale Borough Council,29UM,31/08/2016,1144220,3718.10,INSIGHT DIRECT (UK) LTD,2579852                  ,ICT,Payments in Year,Ledger/Suspense Codes
Swale Borough Council,29UM,31/08/2016,1144089,300.00,LEMAR LIMITED,04350292                 ,CAR PARKS,Maintenance - Grounds,Highway and Transport Services
Swale Borough Council,29UM,31/08/2016,1144089,150.00,LEMAR LIMITED,04350292                 ,CAR PARKS,Maintenance - Grounds,Highway and Transport Services
Swale Borough Council,29UM,31/08/2016,1144090,300.00,LEMAR LIMITED,04350292                 ,CAR PARKS,Maintenance - Grounds,Highway and Transport Services
Swale Borough Council,29UM,31/08/2016,1144090,288.31,LEMAR LIMITED,04350292                 ,CAR PARKS,Maintenance - Grounds,Highway and Transport Services
Swale Borough Council,29UM,31/08/2016,1144043,440.12,LLOYDS BANK - (DT),                         ,FINANCIAL SERVICES,Bank Charges,Corporate & Democratic Core
Swale Borough Council,29UM,31/08/2016,1144305,470.00,M.T.S. CLEANSING SERVICES LTD,2045340                  ,LEISURE & OPEN SPACES,Clearing Cesspools,Cultural and Related Services
Swale Borough Council,29UM,31/08/2016,1144158,1776.00,MACDONALD & COMPANY FREELANCE LTD,3882135                  ,PLANNING SERVICES,Agency/Contract Staff,Internal Trading Cost Centres
Swale Borough Council,29UM,31/08/2016,1144141,1584.00,MATCHTECH,4426336                  ,PLANNING SERVICES,Agency/Contract Staff,Internal Trading Cost Centres
Swale Borough Council,29UM,31/08/2016,1144194,2953.00,MAYLOW CONSTRUCTION LTD,                         ,LEISURE & OPEN SPACES,Maintenance - Grounds,Cultural and Related Services
Swale Borough Council,29UM,31/08/2016,1144195,5219.00,MAYLOW CONSTRUCTION LTD,                         ,LEISURE & OPEN SPACES,Maintenance - Grounds,Cultural and Related Services
Swale Borough Council,29UM,31/08/2016,1144013,3092.80,MEDWAY ACCOMMODATION LIMITED,                         ,HOUSING SERVICES,B & B - Landlords Payments,Housing
Swale Borough Council,29UM,31/08/2016,1144013,644.33,MEDWAY ACCOMMODATION LIMITED,                         ,HOUSING SERVICES,B & B - Landlords Payments,Housing
Swale Borough Council,29UM,31/08/2016,1144014,2414.40,MEDWAY ACCOMMODATION LIMITED,                         ,HOUSING SERVICES,B & B - Landlords Payments,Housing
Swale Borough Council,29UM,31/08/2016,1144014,503.00,MEDWAY ACCOMMODATION LIMITED,                         ,HOUSING SERVICES,B & B - Landlords Payments,Housing
Swale Borough Council,29UM,31/08/2016,1144156,3228.80,MEDWAY ACCOMMODATION LIMITED,                         ,HOUSING SERVICES,B & B - Landlords Payments,Housing
Swale Borough Council,29UM,31/08/2016,1144156,672.67,MEDWAY ACCOMMODATION LIMITED,                         ,HOUSING SERVICES,B & B - Landlords Payments,Housing
Swale Borough Council,29UM,31/08/2016,1144290,7310.00,METRIC GROUP LTD,2560839                  ,CAR PARKS,Equipment Purchase,Highway and Transport Services
Swale Borough Council,29UM,31/08/2016,1144226,7437.32,MPS MARKETING SERVICES LIMITED,6360656                  ,DEMOCRATIC & ELECTORAL SERVICES,Fees And Services,Central Services to the Public
Swale Borough Council,29UM,31/08/2016,1144134,4750.00,REDACTED PERSONAL INFORMATION,                         ,MKIP LEGAL SERVICES,Legal Fees,Internal Trading Cost Centres
Swale Borough Council,29UM,31/08/2016,1144134,950.00,REDACTED PERSONAL INFORMATION,                         ,MKIP LEGAL SERVICES,Legal Fees,Internal Trading Cost Centres
Swale Borough Council,29UM,31/08/2016,1144040,721.71,NEW LEAF SUPPORT LTD,                         ,HOUSING SERVICES,B & B - Landlords Payments,Housing
Swale Borough Council,29UM,31/08/2016,1144135,1138.00,OBSIDIAN SECURITY LTD.,                         ,PROPERTY SERVICES,Service Contracts,Corporate & Democratic Core
Swale Borough Council,29UM,31/08/2016,1144003,875.00,REARDON PROPERTIES,                         ,HOUSING SERVICES,B & B - Landlords Payments,Housing
Swale Borough Council,29UM,31/08/2016,1144004,490.00,REARDON PROPERTIES,                         ,HOUSING SERVICES,B & B - Landlords Payments,Housing
Swale Borough Council,29UM,31/08/2016,1144149,490.00,REARDON PROPERTIES,                         ,HOUSING SERVICES,B & B - Landlords Payments,Housing
Swale Borough Council,29UM,31/08/2016,1144150,835.00,REARDON PROPERTIES,                         ,HOUSING SERVICES,B & B - Landlords Payments,Housing
Swale Borough Council,29UM,31/08/2016,1144140,270.20,RSP RAIL TRAVEL ACCOUNT - (DT),                         ,FINANCIAL SERVICES,Travel Warrants (Staff Travel),Internal Trading Cost Centres
Swale Borough Council,29UM,31/08/2016,1144128,416.80,SOUTH EAST LABELS,                         ,COMMUNICATIONS,Printing - External,Internal Trading Cost Centres
Swale Borough Council,29UM,31/08/2016,1144322,-345.00,STONEBRIDGE ALLOTMENT SOCIETY,                         ,COMMUNITY SAFETY,Grants & Subscriptions,Central Services to the Public
Swale Borough Council,29UM,31/08/2016,1144323,345.00,STONEBRIDGE ALLOTMENT SOCIETY,                         ,COMMUNITY SAFETY,Grants & Subscriptions,Central Services to the Public
Swale Borough Council,29UM,31/08/2016,1144173,2137.80,THE JOHN WOODWARD PARTNERSHIP,                         ,PLANNING SERVICES,Fees And Services,Planning and Development Services
Swale Borough Council,29UM,31/08/2016,1144031,1580.00,TRAFALGAR TAVERN LTD,07999329                 ,HOUSING SERVICES,B & B - Landlords Payments,Housing
Swale Borough Council,29UM,31/08/2016,1144155,1785.00,TRAFALGAR TAVERN LTD,07999329                 ,HOUSING SERVICES,B & B - Landlords Payments,Housing
Swale Borough Council,29UM,31/08/2016,1144178,400.00,UPCHURCH COLTS FC,                         ,COMMUNITY SAFETY,Grants & Subscriptions,Central Services to the Public
Swale Borough Council,29UM,31/08/2016,1144274,1230.00,VENN GROUP LIMITED,                         ,MKIP LEGAL SERVICES,Agency/Contract Staff,Internal Trading Cost Centres
Swale Borough Council,29UM,31/08/2016,1144152,900.00,VP PROPERTY DEVELOPMENT LTD,                         ,HOUSING SERVICES,B & B - Landlords Payments,Housing
Swale Borough Council,29UM,31/08/2016,1144294,300.00,WEALD WOODSCAPES LTD,8028446                  ,LEISURE & OPEN SPACES,Maintenance - Grounds,Cultural and Related Services
Swale Borough Council,29UM,31/08/2016,1144335,7166.72,WILLOW TREE HOME SOLUTIONS LTD,                         ,HOUSING SERVICES,Housing Renovation Grants,Not used in this Structure
Swale Borough Council,29UM,31/08/2016,1144336,5205.06,WILLOW TREE HOME SOLUTIONS LTD,                         ,HOUSING SERVICES,Housing Renovation Grants,Not used in this Structure
